Workbook

Sheet Accueil
A1: Ministre de l'éducation nationale
A8: BP V102 Abidjan
A14: DIRECTION RÉGIONALE D'ABIDJAN SUD
A19: INSTITUT D'ENSEIGNEMENT GÉNÉRAL ET TECHNIQUE LA GRACE ABIDJAN (IEGTA)

Sheet Scolarité (hidden)
B7: Matricule | C7: Nom | D7: Prénoms | E7: Classe | F7: Statut | G7: Date Inscription | H7: Inscription Physique | I7: Date Annexe | J7: Frais Annexe | K7: Date 1er | L7: 1er Versement | M7: Date 2ème | N7: 2ème Versement | O7: Date 3ème | P7: 3ème Versement | Q7: T. Versement | R7: Reste à payer

Sheet Liste (hidden)

Sheet Liste_Note (hidden)
C5: N° | D5: NOM | E5: PRÉNOMS | F5: SEXE | G5: N1 | H5: N2 | I5: N3 | J5: N4
C6: 1 | D6: ZADY | E6: Zere | F6: F

Sheet Saisie_Note (hidden)
B9: MATRICULE | C9: NOM | D9: PRÉNOMS | E9: NOTE

Sheet Recueil (hidden)
D7: MATRICULE | E7: NOM | F7: PRÉNOMS | G7: ANG | H7: COND | I7: EPS | J7: FR | K7: CMC | L7: MATH | M7: PHIL | N7: EC | O7: MATH FIN | P7: EOE | Q7: EG | R7: DROIT | S7: INFO
D8: 23525452M | E8: ZADY | F8: Zere | G8: 10 | H8: 12 | I8: 14 | J8: 15 | K8: 10 | L8: 15 | M8: 11 | N8: 16 | O8: 11 | P8: 15 | Q8: 10 | R8: 12 | S8: 17

Sheet Bulletin (hidden)
D7: 2ème Semestre
D9: ZADY Zere | K9: 23525452M
D10: Classe : | E10: TleG1A | I10: Sexe : | J10: FEMININ
D11: Effectif Global : | E11: 1 | I11: STatut : | J11: AFFECTÉ
D12: Date de naissance : | E12: 2000-01-02 | I12: Redoublante : | J12: OUI
D13: DISCIPLINES | E13: Moy / 20 | F13: Coef | G13: Moy * Coef | H13: Rang | I13: Moy/An | J13: Nom des Professeurs | K13: Appréciation et Signatures des professeurs
D14: Anglais | E14: 11 | F14: 2 | G14: =IF(OR(E14="Disp",E14=""),"",E14*F14) -> 22 | H14: 1er | I14: 10.5 | K14: Passable
D15: CMC | E15: 11 | F15: 2 | G15: 22 | H15: 1er | I15: 10.5 | K15: Passable
D16: Conduite | E16: 10 | F16: 2 | G16: 20 | H16: 1er | I16: 11 | K16: Passable
D17: EPS | E17: 14 | F17: 2 | G17: 28 | H17: 1er | I17: 14 | K17: Bien
D18: Français | E18: 10 | F18: 2 | G18: 20 | H18: 1er | I18: 12.5 | K18: Passable
D19: Mathématique | E19: 14 | F19: 2 | G19: 28 | H19: 1er | I19: 14.5 | K19: Bien
D20: Philosophie | E20: 15 | F20: 2 | G20: 30 | H20: 1er | I20: 13 | K20: Bien
D21: Bilan General | E21: =IF(COUNT(E14:E20)=0,"",AVERAGE(E14:E20)) -> 12.14285714
D22: DROIT | E22: 11 | F22: 2 | G22: =IF(OR(E22="Disp",E22=""),"",E22*F22) -> 22 | H22: 1er | I22: 11.5 | K22: Passable
D23: ECONOMIE D'ENTREPRISE | F23: 2 | I23: 7.5 | K23: Très Faible
D24: ECONOMIE GENERALE | E24: 10 | F24: 2 | G24: 20 | H24: 1er | I24: 10 | K24: Passable
D25: Etude de Cas | E25: 13 | F25: 2 | G25: 26 | H25: 1er | I25: 14.5 | K25: Assez Bien
D26: INFORMATIQUE | E26: 16 | F26: 2 | G26: 32 | H26: 1er | I26: 16.5 | K26: Très Bien
D27: MATHEMATIQUE FINANCIERE | E27: 13 | F27: 2 | G27: 26 | H27: 1er | I27: 12 | K27: Assez Bien
D28: Bilan Technique | E28: =IF(COUNT(E22:E27)=0,"",AVERAGE(E22:E27)) -> 12.6
D29: TOTAL | F29: =SUM(F$14:F27) -> 26 | G29: =SUM(G$14:G27) -> 296 | H29: Moyenne Sem2 /20 : 12,33
D30: Moyenne 1er Semestre /20 : | E30: 12.92 | G30: Rang : | H30: 1er | J30: Appréciation du conseil de classe
D31: Moyenne 2ème Semestre /20 : | E31: 12.33 | G31: Rang : | H31: 1er | J31: Insuffisant
D32: Moyenne Annuel /20 : | E32: 12.52666667 | G32: Rang : | H32: 1er
D34: DISTINCTION | G34: Heures Absences | J34: Tiémélécro, le ___________________________
G35: Total : | J35: Le Professeur Principal :
G36: Justifiées :
G37: Non justifiées :
D39: Sanction | J39: DECISION DE FIN D'ANNÉE
J40: Exclu en cas d'échec
J42: Tiémélécro, le ___________________________
J43: Le Proviseur : Serge Kacou
D48: Nb : Conserver ce bulletin précieusement. Aucun double ne sera établi par l'administration du Institut d'enseignement général et technique la Grace Abidjan (IEGTA)

Sheet Merite (hidden)
B5: Professeur Principal :
B9: MATRICULE | C9: NOM ET PRENOMS | F9: SEXE | G9: AGE | H9: RED | I9: MOY | J9: RANG | K9: Décision Fin Année
B10: 23525452M | C10: ZADY Zere | F10: F | G10: 23 ans | H10: R | I10: 8.1 | J10: 1er | K10: Exclu en cas d'échec

Sheet Livret (hidden)
D6: Nom et Prénoms : | H6: ZADY Zere | T6: Année Scolaire 2022-2023
D8: Matricule : | F8: 23525452M | H8: Redoublant : | J8: R | L8: Classe : | N8: TleG1A | T8: Effectif Total : | X8: 1
H11: 1er Semestre | J11: 2ème Semestre | N11: Annuel | P11: Professeurs
D12: Disciplines | H12: Moy/20 | I12: Rang | J12: Moy/20 | K12: Rang | N12: Moy/20 | O12: Rang | P12: Nom et Prénoms | W12: Appréciation et signatures
D13: Anglais | H13: 10 | I13: 1er | J13: 11 | K13: 1er | N13: 7 | O13: 1er | W13: Faible
D14: CMC | H14: 10 | I14: 1er | J14: 11 | K14: 1er | N14: 7 | O14: 1er | W14: Faible
D15: Conduite | H15: 12 | I15: 1er | J15: 10 | K15: 1er | N15: 7.333333333 | O15: 1er | W15: Faible
D16: DROIT | H16: 12 | I16: 1er | J16: 11 | K16: 1er | N16: 7.666666667 | O16: 1er | W16: Faible
D17: ECONOMIE D'ENTREPRISE | H17: 15 | I17: 1er | N17: 5 | O17: 1er | W17: Très Faible
D18: ECONOMIE GENERALE | H18: 10 | I18: 1er | J18: 10 | K18: 1er | N18: 6.666666667 | O18: 1er | W18: Faible
D19: EPS | H19: 14 | I19: 1er | J19: 14 | K19: 1er | N19: 9.333333333 | O19: 1er | W19: Insuffisant
D20: Etude de Cas | H20: 16 | I20: 1er | J20: 13 | K20: 1er | N20: 9.666666667 | O20: 1er | W20: Insuffisant
D21: Français | H21: 15 | I21: 1er | J21: 10 | K21: 1er | N21: 8.333333333 | O21: 1er | W21: Insuffisant
D22: INFORMATIQUE | H22: 17 | I22: 1er | J22: 16 | K22: 1er | N22: 11 | O22: 1er | W22: Passable
D23: Mathématique | H23: 15 | I23: 1er | J23: 14 | K23: 1er | N23: 9.666666667 | O23: 1er | W23: Insuffisant
D24: MATHEMATIQUE FINANCIERE | H24: 11 | I24: 1er | J24: 13 | K24: 1er | N24: 8 | O24: 1er | W24: Insuffisant
D25: Philosophie | H25: 11 | I25: 1er | J25: 15 | K25: 1er | N25: 8.666666667 | O25: 1er | W25: Insuffisant
D26: Distinctions / Sanctions | H26: Moy. Trim 1 /20 | J26: Moy. Trim 2 /20 | L26: Moy. Trim 3 /20 | N26: AVIS ET OBSERVATIONS DU PROFESSEUR PRINCIPAL | V26: VISA ET OBSERVATIONS DU CHEF D'ÉTABLISSEMENT
D27: 1er Trimestre | G27: TH | H27: 12.92 | J27: 12.33
D28: 2ème Trimestre | G28: TH | H28: Rang Trim 1 | J28: Rang Trim 2 | L28: Rang Trim 3
D29: 3ème Trimestre | H29: 1er | J29: 1er
N30: Date :________________________________________ | V30: Date :________________________________________
N31: Signature : | V31: Signature :
D35: Moyenne Annuelle : | H35: 12.52666667 | J35: Rang Annuel : | L35: 1er | N35: Décision de fin d'année : | V35: Exclu en cas d'échec

Sheet Liste_Matières (hidden)
D6: Matière : | E6: Conduite | I6: Professeur :
H8: 1er Semestre | J8: 2ème Semestre | L8: Annuel
C9: Matricule | D9: Nom et Prénoms | E9: Sexe | F9: Age | G9: Red | H9: Note | I9: Rang | J9: Note | K9: Rang | L9: Note | M9: Rang

Sheet liste_inscrits (hidden)
C6: MATRICULE | D6: NOM ET PRENOMS | E6: SEXE | F6: RED | G6: CLASSE | H6: DATE | I6: MONTANT
C7: 10120456R | D7: KOFFI KOUASSI BLAISE | E7: M | F7: R | G7: 3ème3 | H7: 2020-11-19 | I7: 5000
C8: 11000345T | D8: ABI SESSE AIMÉE | E8: F | G8: 6ème3 | H8: 2020-10-20 | I8: 4000
C9: 12181993X | D9: AGAMA ETTIEN AGNES | E9: F | G9: 6ème3 | H9: 2020-11-19 | I9: 5000
H10: Total | I10: =SUBTOTAL(109,Table_Inscrit[MONTANT]) -> 14000

Sheet liste_examen (hidden)
C6: MATRICULE | D6: NOM ET PRENOMS | E6: SEXE | F6: TYPE D'EXAMEN | G6: DATE | H6: MONTANT
C7: 10120456R | D7: KOFFI KOUASSI BLAISE | E7: M | G7: 2020-12-21 | H7: 2000
C8: 12181993X | D8: AGAMA ETTIEN AGNES | E8: F | G8: 2020-12-21 | H8: 2000
G9: Total | H9: =SUBTOTAL(109,Table_Examen[MONTANT]) -> 4000

Sheet pv_trimestre (hidden)
D5: PROFESSEUR PRINCIPAL
D7: MATRICULE | F7: NOM ET PRENOMS | Q7: SEXE | R7: MOYENNE | T7: RANG
D8: 10120456R | F8: KOFFI KOUASSI BLAISE | Q8: M | R8: 12.47 | T8: 1er
B10: Statistiques de la classe
B12: Effectif Classe | F12: ELEVES AYANT UNE MOYENNE : Moy | R12: Moyenne de la classe
F13: Moy>=10 | J13: 10<Moy>=08,5 | N13: Moy<08,5
B14: Total | D14: Classé | F14: Nombre | H14: % | J14: Nombre | L14: % | N14: Nombre | P14: % | R14: Mini | T14: Maxi | V14: Moy
B15: 2 | D15: 2 | F15: 1 | H15: 50 | J15: 1 | L15: 50 | N15: 0 | R15: 9.36 | T15: 12.47 | V15: 10.92
B17: Distinctions et Sanctions
B19: Distinctions | E19: Nombre | H19: Sanctions | N19: Avertissement Conduite | S19: Blâme Conduite
B20: TH+F | E20: 1 | L20: Nbre | N20: 1 | S20: 0
B21: TH+E | E21: 0 | H21: Avertissement Travail | L21: 1
B22: TH | E22: 0 | H22: Blâme Travail | L22: 0
B25: Statistiques par discipline
B27: Discipline | F27: Eff Classé | G27: Moy>=10 | K27: 10<Moy>=08,5 | O27: Moy<08,5 | S27: Moy Classe | T27: Professeur / Educateur(trice) + Emargement
G28: Nombre | I28: % | K28: Nombre | M28: % | O28: Nombre | Q28: %
B29: Anglais | F29: 2 | G29: 1 | I29: 50 | S29: 12
B30: Composition Française | F30: 2 | G30: 2 | I30: 100 | S30: 11.5
B31: Conduite | F31: 2 | G31: 2 | I31: 100 | S31: 14.5
B32: EDHC | F32: 2 | G32: 2 | I32: 100 | S32: 16
B33: EPS | F33: 2 | G33: 1 | I33: 50 | S33: 12
B34: Expression Ecrite | F34: 2 | G34: 1 | I34: 50 | O34: 1 | Q34: 50 | S34: 10
B35: Histoire Géographie | F35: 2 | G35: 1 | I35: 50 | O35: 1 | Q35: 50 | S35: 7
B36: LV2 | F36: 2 | G36: 1 | I36: 50 | O36: 1 | Q36: 50 | S36: 7.5
B37: Mathématique | F37: 2 | G37: 1 | I37: 50 | O37: 1 | Q37: 50 | S37: 7
B38: Orthographe Grammaire | F38: 2 | G38: 2 | I38: 100 | S38: 13
B39: Physique Chimie | F39: 2 | G39: 2 | I39: 100 | S39: 14
B40: SVT | F40: 2 | G40: 1 | I40: 50 | O40: 1 | Q40: 50 | S40: 8
B41: Arts Plastiques | F41: 2 | G41: 2 | I41: 100 | S41: 13
B43: Le Professeur Principal | O43: Tiemelekro,le 22/09/2023
Q45: Le Proviseur

Sheet pv_annuel (hidden)
D5: PROFESSEUR PRINCIPAL
D7: MATRICULE | F7: NOM ET PRENOMS | Q7: SEXE | R7: MOYENNE | T7: RANG
D8: 10120456R | F8: KOFFI KOUASSI BLAISE | Q8: M | R8: 12.47 | T8: 1er
B10: Statistiques de la classe
B12: Effectif Classe | F12: ELEVES AYANT UNE MOYENNE : Moy | R12: Moyenne de la classe
F13: Moy>=10 | J13: 10>Moy>=08,5 | N13: Moy<08,5
B15: 2 | D15: 2 | F15: 1 | H15: 50 | J15: 1 | L15: 50 | N15: 0 | R15: 9.36 | T15: 12.47 | V15: 10.92
B17: Résultats
G19: ADMIS | K19: REDOUBLANTS | O19: EXCLUS
G20: Nombre | I20: % | K20: Nombre | M20: % | O20: Nombre | Q20: %
E21: Filles
E22: Garçons | G22: 0 | I22: 0 | K22: 1 | M22: 50 | O22: 0 | Q22: 0
E23: TOTAL | G23: =G21+G22 -> 0 | I23: =I21+I22 -> 0 | K23: =K21+K22 -> 1 | M23: =M21+M22 -> 50 | O23: =O21+O22 -> 0 | Q23: =Q21+Q22 -> 0
B25: Statistiques par discipline
B27: Discipline | F27: Eff Classé | G27: Moy>=10 | K27: 10>Moy>=08,5 | O27: Moy<08,5 | S27: Moy Classe | T27: Professeur / Educateur(trice)
G28: Nombre | I28: % | K28: Nombre | M28: % | O28: Nombre | Q28: %
B29: Anglais | F29: 2 | G29: 1 | I29: 50 | S29: 4
B30: Composition Française | F30: 2 | G30: 2 | I30: 100 | S30: 3.833333333
B31: Conduite | F31: 2 | G31: 2 | I31: 100 | S31: 4.833333333
B32: EDHC | F32: 2 | G32: 2 | I32: 100 | S32: 5.333333333
B33: EPS | F33: 2 | G33: 1 | I33: 50 | S33: 4
B34: Expression Ecrite | F34: 2 | G34: 1 | I34: 50 | O34: 1 | Q34: 50 | S34: 3.333333333
B35: Histoire Géographie | F35: 2 | G35: 1 | I35: 50 | O35: 1 | Q35: 50 | S35: 2.333333333
B36: LV2 | F36: 2 | G36: 1 | I36: 50 | O36: 1 | Q36: 50 | S36: 2.5
B37: Mathématique | F37: 2 | G37: 1 | I37: 50 | O37: 1 | Q37: 50 | S37: 2.333333333
B38: Orthographe Grammaire | F38: 2 | G38: 2 | I38: 100 | S38: 4.333333333
B39: Physique Chimie | F39: 2 | G39: 2 | I39: 100 | S39: 4.666666667
B40: SVT | F40: 2 | G40: 1 | I40: 50 | O40: 1 | Q40: 50 | S40: 2.666666667
B41: Arts Plastiques | F41: 2 | G41: 2 | I41: 100 | S41: 4.333333333
B43: Le Professeur Principal | O43: Tiemelekro,le 22/09/2023
Q45: Le Proviseur

Sheet reçu (hidden)
D6: Matricule : | E6: 12181993X
D8: Nom : | E8: AGAMA
D10: Prénoms : | E10: ETTIEN AGNES
D12: Date : | E12: 44158
D14: Montant : | E14: 3000
E15: trois mille FCFA
D17: Reste à payer : | E17: 4000

Sheet Inscription (hidden)
D7: Maticule: | E7: 06121925W
C12: Nom : | E12: ADJED | I12: Sexe : | J12: M
C13: Prénoms : | E13: MARC ARTHUR
C14: Date de naissance : | E14: 2004-04-14
C15: Lieu de naissance :
C16: Nationalité :
C18: Redoublant : | E18: NON
C19: Classe : | E19: TleG1A
C20: LV2 :
C21: EPS : | E21: Apte
C23: Somme payée à l'inscription :
C28: Nom et prénom(s) du père :
C29: Nom et prénom(s) de la mère :
C30: Lieu de residence des parents :
C31: Adresse des parents :
C32: Téléphone :
F36: Fait à Abidjan Le, | G36: =TODAY() -> 2023-09-27
G40: L'Econome
G43: Monsieur Eco 1 pre Eco 1

Sheet Bilan (hidden)
D2: FICHE RECAPITULATIVE
D5: BILAN ECOLE ET EXAMEN
B6: MOIS | D6: INSCRIPTION | F6: SCOLARITE | H6: EXAMEN | J6: TOTAL
B7: Septembre | J7: =IF(COUNT(D7:I7)=0,"",SUM(D7:I7)) -> 
B8: Octobre | D8: 4000 | J8: =IF(COUNT(D8:I8)=0,"",SUM(D8:I8)) -> 4000
B9: Novembre | D9: 10000 | F9: 4000 | J9: 14000
B10: Décembre | H10: 4000 | J10: 4000
B11: Janvier
B12: Février
B13: Mars
B14: Avril
B15: Mai
B16: Juin
B17: Juillet
B18: Août
B19: TOTAL | D19: =SUM(D7:E18) -> 14000 | F19: =SUM(F7:G18) -> 4000 | H19: =SUM(H7:I18) -> 4000 | J19: 22000
G21: Fait à Abidjan Le, | H21: =TODAY() -> 2023-09-27
H23: L'Econome

Sheet BDProfesseurs (hidden)
G2: INFORMATION PROFESSEURS
A4: Matricule | B4: Civilité | C4: Nom | D4: Prénoms | E4: PP | F4: Specialite | G4: Classe1 | H4: Classe2 | I4: Classe3 | J4: Classe4 | K4: Classe5 | L4: Classe6 | M4: Classe7 | N4: Classe8 | O4: Classe9 | P4: Classe10 | Q4: Classe11 | R4: Classe12 | S4: Classe13 | T4: Classe14 | U4: Matiere1 | V4: Matiere2 | W4: Matiere3 | X4: Matiere4 | Y4: Matiere5 | Z4: Matiere6 | AA4: Matiere7 | AB4: Matiere8 | AC4: Matiere9 | AD4: Matiere10 | AE4: Matiere11 | AF4: Matiere12 | AG4: Matiere13 | AH4: Matiere14
A5: 315859W | B5: Monsieur | C5: ZIRIPE | D5: ARNAUD | E5: 1èreA1A | F5: ANGLAIS | G5: 1èreA1A | H5: 3ème1 | U5: Composition Française | V5: Conduite
A6: 123456Y | B6: Monsieur | C6: KOFFI | D6: KONAN FRANCK | U6: Composition Française
A7: 293471R | B7: Madame | C7: DUPONT | D7: ALYSÉE | F7: MATH
A8: 454545T | B8: Mademoiselle | C8: DUVAL | D8: ISABELLE | F8: HISTOIRE
A9: 4544F | B9: Monsieur | C9: GSJ | D9: SCDSDC | F9: ANGLAIS | U9: Anglais

Sheet BDEducateurs (hidden)
G2: INFORMATION EDUCATEUR
A4: Matricule | B4: Civilité | C4: Nom | D4: Prénoms | E4: Classe1 | F4: Classe2 | G4: Classe3 | H4: Classe4 | I4: Classe5 | J4: Classe6 | K4: Classe7 | L4: Classe8 | M4: Classe9 | N4: Classe10 | O4: Classe11 | P4: Classe12 | Q4: Classe13 | R4: Classe14
A5: 5353A | B5: Monsieur | C5: Edu 1 | D5: Pre Edu 1
A6: 5353B | B6: Madame | C6: Edu 2 | D6: Pre Edu 2
A7: 5353C | B7: Mademoiselle | C7: Edu 3 | D7: Pre Edu 3
A8: 5353C | B8: Monsieur | C8: Edu 4 | D8: Pre Edu 4
A9: 5353D | B9: Madame | C9: Edu 5 | D9: Pre Edu 5
A10: 5353F | B10: Monsieur | C10: Edu 6 | D10: Pre Edu 6
A11: 5353G | B11: Madame | C11: Edu 7 | D11: Pre Edu 7
A12: 5353M | B12: Madame | C12: Edu 8 | D12: Pre Edu 8
A13: 5353P | B13: Madame | C13: Edu 9 | D13: Pre Edu 9
A14: 5353Q | B14: Mademoiselle | C14: Edu 10 | D14: Pre Edu 10
A15: 5353T | B15: Mademoiselle | C15: Edu 11 | D15: Pre Edu 11
A16: 5353V | B16: Madame | C16: Edu 12 | D16: Pre Edu 12
A17: 5353X | B17: Monsieur | C17: Edu 13 | D17: Pre Edu 13
A18: 5353AB | B18: Madame | C18: Edu 14 | D18: Pre Edu 14
A19: 5353AG | B19: Monsieur | C19: Edu 15 | D19: Pre Edu 15
A20: 5353AH | B20: Madame | C20: Edu 16 | D20: Pre Edu 16

Sheet BDEconomat (hidden)
G2: INFORMATION ECONOME
A4: Matricule | B4: Reste | C4: Total Frais | D4: Total Vers | E4: Date Inscription | F4: Date Examen | G4: Date Annexe | H4: Date 1er | I4: Date 2ème | J4: Date 3ème | K4: Inscription Physique | L4: Frais Examen | M4: Frais Annexe | N4: 1er Versement | O4: 2ème Versement | P4: 3ème Versement
A5: 10120456R | B5: =IF(COUNT(Table_Eco[[#This Row],[Total Frais]:[Total Vers]])=0,"",IF(Table_Eco[[#This Row],[Total Vers]]="",Table_Eco[[#This Row],[Total Frais]],Table_Eco[[#This Row],[Total Frais]]-Table_Eco[[#This Row],[Total Vers]])) -> 6000 | C5: =IF(COUNT(Table_Eco[[#This Row],[Inscription Physique]:[Frais Annexe]])=0,"",SUM(Table_Eco[[#This Row],[Inscription Physique]:[Frais Annexe]])) -> 9000 | D5: =IF(COUNT(Table_Eco[[#This Row],[1er Versement]:[3ème Versement]])=0,"",SUM(Table_Eco[[#This Row],[1er Versement]:[3ème Versement]])) -> 3000 | E5: 2020-11-19 | F5: 2020-12-21 | G5: 2020-11-20 | H5: 2020-11-23 | K5: 5000 | L5: 2000 | M5: 2000 | N5: 3000
A6: 12181993X | B6: =IF(COUNT(Table_Eco[[#This Row],[Total Frais]:[Total Vers]])=0,"",IF(Table_Eco[[#This Row],[Total Vers]]="",Table_Eco[[#This Row],[Total Frais]],Table_Eco[[#This Row],[Total Frais]]-Table_Eco[[#This Row],[Total Vers]])) -> 6000 | C6: =IF(COUNT(Table_Eco[[#This Row],[Inscription Physique]:[Frais Annexe]])=0,"",SUM(Table_Eco[[#This Row],[Inscription Physique]:[Frais Annexe]])) -> 9000 | D6: =IF(COUNT(Table_Eco[[#This Row],[1er Versement]:[3ème Versement]])=0,"",SUM(Table_Eco[[#This Row],[1er Versement]:[3ème Versement]])) -> 3000 | E6: 2020-11-19 | F6: 2020-12-21 | G6: 2020-11-20 | H6: 2020-11-23 | K6: 5000 | L6: 2000 | M6: 2000 | N6: 3000
A7: 11000345T | B7: =IF(COUNT(Table_Eco[[#This Row],[Total Frais]:[Total Vers]])=0,"",IF(Table_Eco[[#This Row],[Total Vers]]="",Table_Eco[[#This Row],[Total Frais]],Table_Eco[[#This Row],[Total Frais]]-Table_Eco[[#This Row],[Total Vers]])) -> 4000 | C7: =IF(COUNT(Table_Eco[[#This Row],[Inscription Physique]:[Frais Annexe]])=0,"",SUM(Table_Eco[[#This Row],[Inscription Physique]:[Frais Annexe]])) -> 4000 | D7: =IF(COUNT(Table_Eco[[#This Row],[1er Versement]:[3ème Versement]])=0,"",SUM(Table_Eco[[#This Row],[1er Versement]:[3ème Versement]])) ->  | E7: 2020-10-20 | K7: 4000
A8: 06121925W | B8: =IF(COUNT(Table_Eco[[#This Row],[Total Frais]:[Total Vers]])=0,"",IF(Table_Eco[[#This Row],[Total Vers]]="",Table_Eco[[#This Row],[Total Frais]],Table_Eco[[#This Row],[Total Frais]]-Table_Eco[[#This Row],[Total Vers]])) ->  | C8: =IF(COUNT(Table_Eco[[#This Row],[Inscription Physique]:[Frais Annexe]])=0,"",SUM(Table_Eco[[#This Row],[Inscription Physique]:[Frais Annexe]])) ->  | D8: =IF(COUNT(Table_Eco[[#This Row],[1er Versement]:[3ème Versement]])=0,"",SUM(Table_Eco[[#This Row],[1er Versement]:[3ème Versement]])) -> 
A9: 07100101T | B9: =IF(COUNT(Table_Eco[[#This Row],[Total Frais]:[Total Vers]])=0,"",IF(Table_Eco[[#This Row],[Total Vers]]="",Table_Eco[[#This Row],[Total Frais]],Table_Eco[[#This Row],[Total Frais]]-Table_Eco[[#This Row],[Total Vers]])) ->  | C9: =IF(COUNT(Table_Eco[[#This Row],[Inscription Physique]:[Frais Annexe]])=0,"",SUM(Table_Eco[[#This Row],[Inscription Physique]:[Frais Annexe]])) ->  | D9: =IF(COUNT(Table_Eco[[#This Row],[1er Versement]:[3ème Versement]])=0,"",SUM(Table_Eco[[#This Row],[1er Versement]:[3ème Versement]])) -> 
A10: 10120411L | B10: =IF(COUNT(Table_Eco[[#This Row],[Total Frais]:[Total Vers]])=0,"",IF(Table_Eco[[#This Row],[Total Vers]]="",Table_Eco[[#This Row],[Total Frais]],Table_Eco[[#This Row],[Total Frais]]-Table_Eco[[#This Row],[Total Vers]])) ->  | C10: =IF(COUNT(Table_Eco[[#This Row],[Inscription Physique]:[Frais Annexe]])=0,"",SUM(Table_Eco[[#This Row],[Inscription Physique]:[Frais Annexe]])) ->  | D10: =IF(COUNT(Table_Eco[[#This Row],[1er Versement]:[3ème Versement]])=0,"",SUM(Table_Eco[[#This Row],[1er Versement]:[3ème Versement]])) -> 
A11: 11002332P | B11: =IF(COUNT(Table_Eco[[#This Row],[Total Frais]:[Total Vers]])=0,"",IF(Table_Eco[[#This Row],[Total Vers]]="",Table_Eco[[#This Row],[Total Frais]],Table_Eco[[#This Row],[Total Frais]]-Table_Eco[[#This Row],[Total Vers]])) ->  | C11: =IF(COUNT(Table_Eco[[#This Row],[Inscription Physique]:[Frais Annexe]])=0,"",SUM(Table_Eco[[#This Row],[Inscription Physique]:[Frais Annexe]])) ->  | D11: =IF(COUNT(Table_Eco[[#This Row],[1er Versement]:[3ème Versement]])=0,"",SUM(Table_Eco[[#This Row],[1er Versement]:[3ème Versement]])) -> 
A12: 11002377R | B12: =IF(COUNT(Table_Eco[[#This Row],[Total Frais]:[Total Vers]])=0,"",IF(Table_Eco[[#This Row],[Total Vers]]="",Table_Eco[[#This Row],[Total Frais]],Table_Eco[[#This Row],[Total Frais]]-Table_Eco[[#This Row],[Total Vers]])) ->  | C12: =IF(COUNT(Table_Eco[[#This Row],[Inscription Physique]:[Frais Annexe]])=0,"",SUM(Table_Eco[[#This Row],[Inscription Physique]:[Frais Annexe]])) ->  | D12: =IF(COUNT(Table_Eco[[#This Row],[1er Versement]:[3ème Versement]])=0,"",SUM(Table_Eco[[#This Row],[1er Versement]:[3ème Versement]])) -> 
A13: 11002605Z | B13: =IF(COUNT(Table_Eco[[#This Row],[Total Frais]:[Total Vers]])=0,"",IF(Table_Eco[[#This Row],[Total Vers]]="",Table_Eco[[#This Row],[Total Frais]],Table_Eco[[#This Row],[Total Frais]]-Table_Eco[[#This Row],[Total Vers]])) ->  | C13: =IF(COUNT(Table_Eco[[#This Row],[Inscription Physique]:[Frais Annexe]])=0,"",SUM(Table_Eco[[#This Row],[Inscription Physique]:[Frais Annexe]])) ->  | D13: =IF(COUNT(Table_Eco[[#This Row],[1er Versement]:[3ème Versement]])=0,"",SUM(Table_Eco[[#This Row],[1er Versement]:[3ème Versement]])) -> 
A14: 11002711V | B14: =IF(COUNT(Table_Eco[[#This Row],[Total Frais]:[Total Vers]])=0,"",IF(Table_Eco[[#This Row],[Total Vers]]="",Table_Eco[[#This Row],[Total Frais]],Table_Eco[[#This Row],[Total Frais]]-Table_Eco[[#This Row],[Total Vers]])) ->  | C14: =IF(COUNT(Table_Eco[[#This Row],[Inscription Physique]:[Frais Annexe]])=0,"",SUM(Table_Eco[[#This Row],[Inscription Physique]:[Frais Annexe]])) ->  | D14: =IF(COUNT(Table_Eco[[#This Row],[1er Versement]:[3ème Versement]])=0,"",SUM(Table_Eco[[#This Row],[1er Versement]:[3ème Versement]])) -> 
A15: 11003546C | B15: =IF(COUNT(Table_Eco[[#This Row],[Total Frais]:[Total Vers]])=0,"",IF(Table_Eco[[#This Row],[Total Vers]]="",Table_Eco[[#This Row],[Total Frais]],Table_Eco[[#This Row],[Total Frais]]-Table_Eco[[#This Row],[Total Vers]])) ->  | C15: =IF(COUNT(Table_Eco[[#This Row],[Inscription Physique]:[Frais Annexe]])=0,"",SUM(Table_Eco[[#This Row],[Inscription Physique]:[Frais Annexe]])) ->  | D15: =IF(COUNT(Table_Eco[[#This Row],[1er Versement]:[3ème Versement]])=0,"",SUM(Table_Eco[[#This Row],[1er Versement]:[3ème Versement]])) -> 
A16: 11003729N | B16: =IF(COUNT(Table_Eco[[#This Row],[Total Frais]:[Total Vers]])=0,"",IF(Table_Eco[[#This Row],[Total Vers]]="",Table_Eco[[#This Row],[Total Frais]],Table_Eco[[#This Row],[Total Frais]]-Table_Eco[[#This Row],[Total Vers]])) ->  | C16: =IF(COUNT(Table_Eco[[#This Row],[Inscription Physique]:[Frais Annexe]])=0,"",SUM(Table_Eco[[#This Row],[Inscription Physique]:[Frais Annexe]])) ->  | D16: =IF(COUNT(Table_Eco[[#This Row],[1er Versement]:[3ème Versement]])=0,"",SUM(Table_Eco[[#This Row],[1er Versement]:[3ème Versement]])) -> 
A17: 11004117P | B17: =IF(COUNT(Table_Eco[[#This Row],[Total Frais]:[Total Vers]])=0,"",IF(Table_Eco[[#This Row],[Total Vers]]="",Table_Eco[[#This Row],[Total Frais]],Table_Eco[[#This Row],[Total Frais]]-Table_Eco[[#This Row],[Total Vers]])) ->  | C17: =IF(COUNT(Table_Eco[[#This Row],[Inscription Physique]:[Frais Annexe]])=0,"",SUM(Table_Eco[[#This Row],[Inscription Physique]:[Frais Annexe]])) ->  | D17: =IF(COUNT(Table_Eco[[#This Row],[1er Versement]:[3ème Versement]])=0,"",SUM(Table_Eco[[#This Row],[1er Versement]:[3ème Versement]])) -> 
A18: 12134456H | B18: =IF(COUNT(Table_Eco[[#This Row],[Total Frais]:[Total Vers]])=0,"",IF(Table_Eco[[#This Row],[Total Vers]]="",Table_Eco[[#This Row],[Total Frais]],Table_Eco[[#This Row],[Total Frais]]-Table_Eco[[#This Row],[Total Vers]])) ->  | C18: =IF(COUNT(Table_Eco[[#This Row],[Inscription Physique]:[Frais Annexe]])=0,"",SUM(Table_Eco[[#This Row],[Inscription Physique]:[Frais Annexe]])) ->  | D18: =IF(COUNT(Table_Eco[[#This Row],[1er Versement]:[3ème Versement]])=0,"",SUM(Table_Eco[[#This Row],[1er Versement]:[3ème Versement]])) -> 
A19: 12134576D | B19: =IF(COUNT(Table_Eco[[#This Row],[Total Frais]:[Total Vers]])=0,"",IF(Table_Eco[[#This Row],[Total Vers]]="",Table_Eco[[#This Row],[Total Frais]],Table_Eco[[#This Row],[Total Frais]]-Table_Eco[[#This Row],[Total Vers]])) ->  | C19: =IF(COUNT(Table_Eco[[#This Row],[Inscription Physique]:[Frais Annexe]])=0,"",SUM(Table_Eco[[#This Row],[Inscription Physique]:[Frais Annexe]])) ->  | D19: =IF(COUNT(Table_Eco[[#This Row],[1er Versement]:[3ème Versement]])=0,"",SUM(Table_Eco[[#This Row],[1er Versement]:[3ème Versement]])) -> 
A20: 12180433R | B20: =IF(COUNT(Table_Eco[[#This Row],[Total Frais]:[Total Vers]])=0,"",IF(Table_Eco[[#This Row],[Total Vers]]="",Table_Eco[[#This Row],[Total Frais]],Table_Eco[[#This Row],[Total Frais]]-Table_Eco[[#This Row],[Total Vers]])) ->  | C20: =IF(COUNT(Table_Eco[[#This Row],[Inscription Physique]:[Frais Annexe]])=0,"",SUM(Table_Eco[[#This Row],[Inscription Physique]:[Frais Annexe]])) ->  | D20: =IF(COUNT(Table_Eco[[#This Row],[1er Versement]:[3ème Versement]])=0,"",SUM(Table_Eco[[#This Row],[1er Versement]:[3ème Versement]])) -> 
A21: 12181990G | B21: =IF(COUNT(Table_Eco[[#This Row],[Total Frais]:[Total Vers]])=0,"",IF(Table_Eco[[#This Row],[Total Vers]]="",Table_Eco[[#This Row],[Total Frais]],Table_Eco[[#This Row],[Total Frais]]-Table_Eco[[#This Row],[Total Vers]])) ->  | C21: =IF(COUNT(Table_Eco[[#This Row],[Inscription Physique]:[Frais Annexe]])=0,"",SUM(Table_Eco[[#This Row],[Inscription Physique]:[Frais Annexe]])) ->  | D21: =IF(COUNT(Table_Eco[[#This Row],[1er Versement]:[3ème Versement]])=0,"",SUM(Table_Eco[[#This Row],[1er Versement]:[3ème Versement]])) -> 
A22: 12181991F | B22: =IF(COUNT(Table_Eco[[#This Row],[Total Frais]:[Total Vers]])=0,"",IF(Table_Eco[[#This Row],[Total Vers]]="",Table_Eco[[#This Row],[Total Frais]],Table_Eco[[#This Row],[Total Frais]]-Table_Eco[[#This Row],[Total Vers]])) ->  | C22: =IF(COUNT(Table_Eco[[#This Row],[Inscription Physique]:[Frais Annexe]])=0,"",SUM(Table_Eco[[#This Row],[Inscription Physique]:[Frais Annexe]])) ->  | D22: =IF(COUNT(Table_Eco[[#This Row],[1er Versement]:[3ème Versement]])=0,"",SUM(Table_Eco[[#This Row],[1er Versement]:[3ème Versement]])) -> 
A23: 12181992W | B23: =IF(COUNT(Table_Eco[[#This Row],[Total Frais]:[Total Vers]])=0,"",IF(Table_Eco[[#This Row],[Total Vers]]="",Table_Eco[[#This Row],[Total Frais]],Table_Eco[[#This Row],[Total Frais]]-Table_Eco[[#This Row],[Total Vers]])) ->  | C23: =IF(COUNT(Table_Eco[[#This Row],[Inscription Physique]:[Frais Annexe]])=0,"",SUM(Table_Eco[[#This Row],[Inscription Physique]:[Frais Annexe]])) ->  | D23: =IF(COUNT(Table_Eco[[#This Row],[1er Versement]:[3ème Versement]])=0,"",SUM(Table_Eco[[#This Row],[1er Versement]:[3ème Versement]])) -> 
A24: 12182130D | B24: =IF(COUNT(Table_Eco[[#This Row],[Total Frais]:[Total Vers]])=0,"",IF(Table_Eco[[#This Row],[Total Vers]]="",Table_Eco[[#This Row],[Total Frais]],Table_Eco[[#This Row],[Total Frais]]-Table_Eco[[#This Row],[Total Vers]])) ->  | C24: =IF(COUNT(Table_Eco[[#This Row],[Inscription Physique]:[Frais Annexe]])=0,"",SUM(Table_Eco[[#This Row],[Inscription Physique]:[Frais Annexe]])) ->  | D24: =IF(COUNT(Table_Eco[[#This Row],[1er Versement]:[3ème Versement]])=0,"",SUM(Table_Eco[[#This Row],[1er Versement]:[3ème Versement]])) -> 
A25: 13217171Q | B25: =IF(COUNT(Table_Eco[[#This Row],[Total Frais]:[Total Vers]])=0,"",IF(Table_Eco[[#This Row],[Total Vers]]="",Table_Eco[[#This Row],[Total Frais]],Table_Eco[[#This Row],[Total Frais]]-Table_Eco[[#This Row],[Total Vers]])) ->  | C25: =IF(COUNT(Table_Eco[[#This Row],[Inscription Physique]:[Frais Annexe]])=0,"",SUM(Table_Eco[[#This Row],[Inscription Physique]:[Frais Annexe]])) ->  | D25: =IF(COUNT(Table_Eco[[#This Row],[1er Versement]:[3ème Versement]])=0,"",SUM(Table_Eco[[#This Row],[1er Versement]:[3ème Versement]])) -> 
A26: 13217173G | B26: =IF(COUNT(Table_Eco[[#This Row],[Total Frais]:[Total Vers]])=0,"",IF(Table_Eco[[#This Row],[Total Vers]]="",Table_Eco[[#This Row],[Total Frais]],Table_Eco[[#This Row],[Total Frais]]-Table_Eco[[#This Row],[Total Vers]])) ->  | C26: =IF(COUNT(Table_Eco[[#This Row],[Inscription Physique]:[Frais Annexe]])=0,"",SUM(Table_Eco[[#This Row],[Inscription Physique]:[Frais Annexe]])) ->  | D26: =IF(COUNT(Table_Eco[[#This Row],[1er Versement]:[3ème Versement]])=0,"",SUM(Table_Eco[[#This Row],[1er Versement]:[3ème Versement]])) -> 
A27: 13217658G | B27: =IF(COUNT(Table_Eco[[#This Row],[Total Frais]:[Total Vers]])=0,"",IF(Table_Eco[[#This Row],[Total Vers]]="",Table_Eco[[#This Row],[Total Frais]],Table_Eco[[#This Row],[Total Frais]]-Table_Eco[[#This Row],[Total Vers]])) ->  | C27: =IF(COUNT(Table_Eco[[#This Row],[Inscription Physique]:[Frais Annexe]])=0,"",SUM(Table_Eco[[#This Row],[Inscription Physique]:[Frais Annexe]])) ->  | D27: =IF(COUNT(Table_Eco[[#This Row],[1er Versement]:[3ème Versement]])=0,"",SUM(Table_Eco[[#This Row],[1er Versement]:[3ème Versement]])) -> 
A28: 13217659H | B28: =IF(COUNT(Table_Eco[[#This Row],[Total Frais]:[Total Vers]])=0,"",IF(Table_Eco[[#This Row],[Total Vers]]="",Table_Eco[[#This Row],[Total Frais]],Table_Eco[[#This Row],[Total Frais]]-Table_Eco[[#This Row],[Total Vers]])) ->  | C28: =IF(COUNT(Table_Eco[[#This Row],[Inscription Physique]:[Frais Annexe]])=0,"",SUM(Table_Eco[[#This Row],[Inscription Physique]:[Frais Annexe]])) ->  | D28: =IF(COUNT(Table_Eco[[#This Row],[1er Versement]:[3ème Versement]])=0,"",SUM(Table_Eco[[#This Row],[1er Versement]:[3ème Versement]])) -> 
A29: 13217660P | B29: =IF(COUNT(Table_Eco[[#This Row],[Total Frais]:[Total Vers]])=0,"",IF(Table_Eco[[#This Row],[Total Vers]]="",Table_Eco[[#This Row],[Total Frais]],Table_Eco[[#This Row],[Total Frais]]-Table_Eco[[#This Row],[Total Vers]])) ->  | C29: =IF(COUNT(Table_Eco[[#This Row],[Inscription Physique]:[Frais Annexe]])=0,"",SUM(Table_Eco[[#This Row],[Inscription Physique]:[Frais Annexe]])) ->  | D29: =IF(COUNT(Table_Eco[[#This Row],[1er Versement]:[3ème Versement]])=0,"",SUM(Table_Eco[[#This Row],[1er Versement]:[3ème Versement]])) -> 
A30: 13217671M | B30: =IF(COUNT(Table_Eco[[#This Row],[Total Frais]:[Total Vers]])=0,"",IF(Table_Eco[[#This Row],[Total Vers]]="",Table_Eco[[#This Row],[Total Frais]],Table_Eco[[#This Row],[Total Frais]]-Table_Eco[[#This Row],[Total Vers]])) ->  | C30: =IF(COUNT(Table_Eco[[#This Row],[Inscription Physique]:[Frais Annexe]])=0,"",SUM(Table_Eco[[#This Row],[Inscription Physique]:[Frais Annexe]])) ->  | D30: =IF(COUNT(Table_Eco[[#This Row],[1er Versement]:[3ème Versement]])=0,"",SUM(Table_Eco[[#This Row],[1er Versement]:[3ème Versement]])) -> 
A31: 13217826G | B31: =IF(COUNT(Table_Eco[[#This Row],[Total Frais]:[Total Vers]])=0,"",IF(Table_Eco[[#This Row],[Total Vers]]="",Table_Eco[[#This Row],[Total Frais]],Table_Eco[[#This Row],[Total Frais]]-Table_Eco[[#This Row],[Total Vers]])) ->  | C31: =IF(COUNT(Table_Eco[[#This Row],[Inscription Physique]:[Frais Annexe]])=0,"",SUM(Table_Eco[[#This Row],[Inscription Physique]:[Frais Annexe]])) ->  | D31: =IF(COUNT(Table_Eco[[#This Row],[1er Versement]:[3ème Versement]])=0,"",SUM(Table_Eco[[#This Row],[1er Versement]:[3ème Versement]])) -> 
A32: 14238228G | B32: =IF(COUNT(Table_Eco[[#This Row],[Total Frais]:[Total Vers]])=0,"",IF(Table_Eco[[#This Row],[Total Vers]]="",Table_Eco[[#This Row],[Total Frais]],Table_Eco[[#This Row],[Total Frais]]-Table_Eco[[#This Row],[Total Vers]])) ->  | C32: =IF(COUNT(Table_Eco[[#This Row],[Inscription Physique]:[Frais Annexe]])=0,"",SUM(Table_Eco[[#This Row],[Inscription Physique]:[Frais Annexe]])) ->  | D32: =IF(COUNT(Table_Eco[[#This Row],[1er Versement]:[3ème Versement]])=0,"",SUM(Table_Eco[[#This Row],[1er Versement]:[3ème Versement]])) -> 
A33: 14239542Z | B33: =IF(COUNT(Table_Eco[[#This Row],[Total Frais]:[Total Vers]])=0,"",IF(Table_Eco[[#This Row],[Total Vers]]="",Table_Eco[[#This Row],[Total Frais]],Table_Eco[[#This Row],[Total Frais]]-Table_Eco[[#This Row],[Total Vers]])) ->  | C33: =IF(COUNT(Table_Eco[[#This Row],[Inscription Physique]:[Frais Annexe]])=0,"",SUM(Table_Eco[[#This Row],[Inscription Physique]:[Frais Annexe]])) ->  | D33: =IF(COUNT(Table_Eco[[#This Row],[1er Versement]:[3ème Versement]])=0,"",SUM(Table_Eco[[#This Row],[1er Versement]:[3ème Versement]])) -> 
A34: 14239543S | B34: =IF(COUNT(Table_Eco[[#This Row],[Total Frais]:[Total Vers]])=0,"",IF(Table_Eco[[#This Row],[Total Vers]]="",Table_Eco[[#This Row],[Total Frais]],Table_Eco[[#This Row],[Total Frais]]-Table_Eco[[#This Row],[Total Vers]])) ->  | C34: =IF(COUNT(Table_Eco[[#This Row],[Inscription Physique]:[Frais Annexe]])=0,"",SUM(Table_Eco[[#This Row],[Inscription Physique]:[Frais Annexe]])) ->  | D34: =IF(COUNT(Table_Eco[[#This Row],[1er Versement]:[3ème Versement]])=0,"",SUM(Table_Eco[[#This Row],[1er Versement]:[3ème Versement]])) -> 
A35: 14239544T | B35: =IF(COUNT(Table_Eco[[#This Row],[Total Frais]:[Total Vers]])=0,"",IF(Table_Eco[[#This Row],[Total Vers]]="",Table_Eco[[#This Row],[Total Frais]],Table_Eco[[#This Row],[Total Frais]]-Table_Eco[[#This Row],[Total Vers]])) ->  | C35: =IF(COUNT(Table_Eco[[#This Row],[Inscription Physique]:[Frais Annexe]])=0,"",SUM(Table_Eco[[#This Row],[Inscription Physique]:[Frais Annexe]])) ->  | D35: =IF(COUNT(Table_Eco[[#This Row],[1er Versement]:[3ème Versement]])=0,"",SUM(Table_Eco[[#This Row],[1er Versement]:[3ème Versement]])) -> 
A36: 14239688W | B36: =IF(COUNT(Table_Eco[[#This Row],[Total Frais]:[Total Vers]])=0,"",IF(Table_Eco[[#This Row],[Total Vers]]="",Table_Eco[[#This Row],[Total Frais]],Table_Eco[[#This Row],[Total Frais]]-Table_Eco[[#This Row],[Total Vers]])) ->  | C36: =IF(COUNT(Table_Eco[[#This Row],[Inscription Physique]:[Frais Annexe]])=0,"",SUM(Table_Eco[[#This Row],[Inscription Physique]:[Frais Annexe]])) ->  | D36: =IF(COUNT(Table_Eco[[#This Row],[1er Versement]:[3ème Versement]])=0,"",SUM(Table_Eco[[#This Row],[1er Versement]:[3ème Versement]])) -> 
A37: 14239690E | B37: =IF(COUNT(Table_Eco[[#This Row],[Total Frais]:[Total Vers]])=0,"",IF(Table_Eco[[#This Row],[Total Vers]]="",Table_Eco[[#This Row],[Total Frais]],Table_Eco[[#This Row],[Total Frais]]-Table_Eco[[#This Row],[Total Vers]])) ->  | C37: =IF(COUNT(Table_Eco[[#This Row],[Inscription Physique]:[Frais Annexe]])=0,"",SUM(Table_Eco[[#This Row],[Inscription Physique]:[Frais Annexe]])) ->  | D37: =IF(COUNT(Table_Eco[[#This Row],[1er Versement]:[3ème Versement]])=0,"",SUM(Table_Eco[[#This Row],[1er Versement]:[3ème Versement]])) -> 
A38: 14239830P | B38: =IF(COUNT(Table_Eco[[#This Row],[Total Frais]:[Total Vers]])=0,"",IF(Table_Eco[[#This Row],[Total Vers]]="",Table_Eco[[#This Row],[Total Frais]],Table_Eco[[#This Row],[Total Frais]]-Table_Eco[[#This Row],[Total Vers]])) ->  | C38: =IF(COUNT(Table_Eco[[#This Row],[Inscription Physique]:[Frais Annexe]])=0,"",SUM(Table_Eco[[#This Row],[Inscription Physique]:[Frais Annexe]])) ->  | D38: =IF(COUNT(Table_Eco[[#This Row],[1er Versement]:[3ème Versement]])=0,"",SUM(Table_Eco[[#This Row],[1er Versement]:[3ème Versement]])) -> 
A39: 14239831N | B39: =IF(COUNT(Table_Eco[[#This Row],[Total Frais]:[Total Vers]])=0,"",IF(Table_Eco[[#This Row],[Total Vers]]="",Table_Eco[[#This Row],[Total Frais]],Table_Eco[[#This Row],[Total Frais]]-Table_Eco[[#This Row],[Total Vers]])) ->  | C39: =IF(COUNT(Table_Eco[[#This Row],[Inscription Physique]:[Frais Annexe]])=0,"",SUM(Table_Eco[[#This Row],[Inscription Physique]:[Frais Annexe]])) ->  | D39: =IF(COUNT(Table_Eco[[#This Row],[1er Versement]:[3ème Versement]])=0,"",SUM(Table_Eco[[#This Row],[1er Versement]:[3ème Versement]])) -> 
A40: 201121T | B40: =IF(COUNT(Table_Eco[[#This Row],[Total Frais]:[Total Vers]])=0,"",IF(Table_Eco[[#This Row],[Total Vers]]="",Table_Eco[[#This Row],[Total Frais]],Table_Eco[[#This Row],[Total Frais]]-Table_Eco[[#This Row],[Total Vers]])) ->  | C40: =IF(COUNT(Table_Eco[[#This Row],[Inscription Physique]:[Frais Annexe]])=0,"",SUM(Table_Eco[[#This Row],[Inscription Physique]:[Frais Annexe]])) ->  | D40: =IF(COUNT(Table_Eco[[#This Row],[1er Versement]:[3ème Versement]])=0,"",SUM(Table_Eco[[#This Row],[1er Versement]:[3ème Versement]])) -> 
A41: 21220201Y | B41: =IF(COUNT(Table_Eco[[#This Row],[Total Frais]:[Total Vers]])=0,"",IF(Table_Eco[[#This Row],[Total Vers]]="",Table_Eco[[#This Row],[Total Frais]],Table_Eco[[#This Row],[Total Frais]]-Table_Eco[[#This Row],[Total Vers]])) ->  | C41: =IF(COUNT(Table_Eco[[#This Row],[Inscription Physique]:[Frais Annexe]])=0,"",SUM(Table_Eco[[#This Row],[Inscription Physique]:[Frais Annexe]])) ->  | D41: =IF(COUNT(Table_Eco[[#This Row],[1er Versement]:[3ème Versement]])=0,"",SUM(Table_Eco[[#This Row],[1er Versement]:[3ème Versement]])) -> 
A42: 21222123B | B42: =IF(COUNT(Table_Eco[[#This Row],[Total Frais]:[Total Vers]])=0,"",IF(Table_Eco[[#This Row],[Total Vers]]="",Table_Eco[[#This Row],[Total Frais]],Table_Eco[[#This Row],[Total Frais]]-Table_Eco[[#This Row],[Total Vers]])) ->  | C42: =IF(COUNT(Table_Eco[[#This Row],[Inscription Physique]:[Frais Annexe]])=0,"",SUM(Table_Eco[[#This Row],[Inscription Physique]:[Frais Annexe]])) ->  | D42: =IF(COUNT(Table_Eco[[#This Row],[1er Versement]:[3ème Versement]])=0,"",SUM(Table_Eco[[#This Row],[1er Versement]:[3ème Versement]])) -> 
A43: 22020201J | B43: =IF(COUNT(Table_Eco[[#This Row],[Total Frais]:[Total Vers]])=0,"",IF(Table_Eco[[#This Row],[Total Vers]]="",Table_Eco[[#This Row],[Total Frais]],Table_Eco[[#This Row],[Total Frais]]-Table_Eco[[#This Row],[Total Vers]])) ->  | C43: =IF(COUNT(Table_Eco[[#This Row],[Inscription Physique]:[Frais Annexe]])=0,"",SUM(Table_Eco[[#This Row],[Inscription Physique]:[Frais Annexe]])) ->  | D43: =IF(COUNT(Table_Eco[[#This Row],[1er Versement]:[3ème Versement]])=0,"",SUM(Table_Eco[[#This Row],[1er Versement]:[3ème Versement]])) -> 
A44: 22101214L | B44: =IF(COUNT(Table_Eco[[#This Row],[Total Frais]:[Total Vers]])=0,"",IF(Table_Eco[[#This Row],[Total Vers]]="",Table_Eco[[#This Row],[Total Frais]],Table_Eco[[#This Row],[Total Frais]]-Table_Eco[[#This Row],[Total Vers]])) ->  | C44: =IF(COUNT(Table_Eco[[#This Row],[Inscription Physique]:[Frais Annexe]])=0,"",SUM(Table_Eco[[#This Row],[Inscription Physique]:[Frais Annexe]])) ->  | D44: =IF(COUNT(Table_Eco[[#This Row],[1er Versement]:[3ème Versement]])=0,"",SUM(Table_Eco[[#This Row],[1er Versement]:[3ème Versement]])) -> 
A45: 22452158H | B45: =IF(COUNT(Table_Eco[[#This Row],[Total Frais]:[Total Vers]])=0,"",IF(Table_Eco[[#This Row],[Total Vers]]="",Table_Eco[[#This Row],[Total Frais]],Table_Eco[[#This Row],[Total Frais]]-Table_Eco[[#This Row],[Total Vers]])) ->  | C45: =IF(COUNT(Table_Eco[[#This Row],[Inscription Physique]:[Frais Annexe]])=0,"",SUM(Table_Eco[[#This Row],[Inscription Physique]:[Frais Annexe]])) ->  | D45: =IF(COUNT(Table_Eco[[#This Row],[1er Versement]:[3ème Versement]])=0,"",SUM(Table_Eco[[#This Row],[1er Versement]:[3ème Versement]])) -> 
A46: 22545485F | B46: =IF(COUNT(Table_Eco[[#This Row],[Total Frais]:[Total Vers]])=0,"",IF(Table_Eco[[#This Row],[Total Vers]]="",Table_Eco[[#This Row],[Total Frais]],Table_Eco[[#This Row],[Total Frais]]-Table_Eco[[#This Row],[Total Vers]])) ->  | C46: =IF(COUNT(Table_Eco[[#This Row],[Inscription Physique]:[Frais Annexe]])=0,"",SUM(Table_Eco[[#This Row],[Inscription Physique]:[Frais Annexe]])) ->  | D46: =IF(COUNT(Table_Eco[[#This Row],[1er Versement]:[3ème Versement]])=0,"",SUM(Table_Eco[[#This Row],[1er Versement]:[3ème Versement]])) -> 
A47: 22758799P | B47: =IF(COUNT(Table_Eco[[#This Row],[Total Frais]:[Total Vers]])=0,"",IF(Table_Eco[[#This Row],[Total Vers]]="",Table_Eco[[#This Row],[Total Frais]],Table_Eco[[#This Row],[Total Frais]]-Table_Eco[[#This Row],[Total Vers]])) ->  | C47: =IF(COUNT(Table_Eco[[#This Row],[Inscription Physique]:[Frais Annexe]])=0,"",SUM(Table_Eco[[#This Row],[Inscription Physique]:[Frais Annexe]])) ->  | D47: =IF(COUNT(Table_Eco[[#This Row],[1er Versement]:[3ème Versement]])=0,"",SUM(Table_Eco[[#This Row],[1er Versement]:[3ème Versement]])) -> 
A48: 23525452M | B48: =IF(COUNT(Table_Eco[[#This Row],[Total Frais]:[Total Vers]])=0,"",IF(Table_Eco[[#This Row],[Total Vers]]="",Table_Eco[[#This Row],[Total Frais]],Table_Eco[[#This Row],[Total Frais]]-Table_Eco[[#This Row],[Total Vers]])) ->  | C48: =IF(COUNT(Table_Eco[[#This Row],[Inscription Physique]:[Frais Annexe]])=0,"",SUM(Table_Eco[[#This Row],[Inscription Physique]:[Frais Annexe]])) ->  | D48: =IF(COUNT(Table_Eco[[#This Row],[1er Versement]:[3ème Versement]])=0,"",SUM(Table_Eco[[#This Row],[1er Versement]:[3ème Versement]])) -> 
A49: 41454122K | B49: =IF(COUNT(Table_Eco[[#This Row],[Total Frais]:[Total Vers]])=0,"",IF(Table_Eco[[#This Row],[Total Vers]]="",Table_Eco[[#This Row],[Total Frais]],Table_Eco[[#This Row],[Total Frais]]-Table_Eco[[#This Row],[Total Vers]])) ->  | C49: =IF(COUNT(Table_Eco[[#This Row],[Inscription Physique]:[Frais Annexe]])=0,"",SUM(Table_Eco[[#This Row],[Inscription Physique]:[Frais Annexe]])) ->  | D49: =IF(COUNT(Table_Eco[[#This Row],[1er Versement]:[3ème Versement]])=0,"",SUM(Table_Eco[[#This Row],[1er Versement]:[3ème Versement]])) -> 
A50: Total | K50: =SUBTOTAL(109,Table_Eco[Inscription Physique]) -> 0 | L50: =SUBTOTAL(109,Table_Eco[Frais Examen]) -> 0 | M50: =SUBTOTAL(109,Table_Eco[Frais Annexe]) -> 0 | N50: =SUBTOTAL(109,Table_Eco[1er Versement]) -> 0 | O50: =SUBTOTAL(109,Table_Eco[2ème Versement]) -> 0 | P50: =SUBTOTAL(109,Table_Eco[3ème Versement]) -> 0

Sheet BDElèves (hidden)
A1: Matricule | B1: Nom | C1: Prénoms | D1: Sexe | E1: Date Naissance | F1: Classe | G1: Statut | H1: BEPC | I1: Langue | J1: Red | K1: Lieu Nais | L1: Photo | M1: Nationalité | N1: N Père | O1: N Mère | P1: Adresse | Q1: Rési | R1: Tel | S1: Email
A2: 201121T | B2: AAMA | C2: AZE | D2: F | E2: 2000-03-12 | F2: 6ème3 | G2: Non affecté | J2: R | K2: GOUV | M2: Ivoirienne
A3: 14239688W | B3: ABETSO | C3: KOTTY ANGE FULGENCE | D3: M | E3: 2004-03-29 | F3: 6ème3 | G3: Affecté
A4: 11000345T | B4: ABI | C4: SESSE AIMÉE | D4: F | E4: 1999-09-12 | F4: 6ème3 | G4: Affecté
A5: 14239830P | B5: ABOTTO | C5: N'GORAN MARTIN | D5: M | E5: 2001-12-20 | F5: 6ème3 | G5: Affecté
A6: 13217658G | B6: ABY | C6: AMENAN FRANCELINE OR. | D6: F | E6: 2000-05-30 | F6: 6ème3 | G6: Affecté
A7: 14238228G | B7: ADAYI | C7: COMOE FLORENCE | D7: F | E7: 2001-01-18 | F7: 6ème3 | G7: Affecté
A8: 13217826G | B8: ADJAFFI | C8: ADJOUA MARIE CLAIRE | D8: F | E8: 1998-08-11 | F8: 6ème3 | G8: Affecté
A9: 13217171Q | B9: ADJE | C9: AMOUAN ANGE MARIE | D9: F | E9: 1999-11-29 | F9: 6ème3 | G9: Affecté
A10: 11002332P | B10: ADJE | C10: YAPO ABEL | D10: M | E10: 1997-09-08 | F10: 6ème3 | G10: Affecté
A11: 07100101T | B11: ADJED | C11: DJEDJANE CHRISTELLE | D11: F | E11: 1997-01-01 | F11: 6ème3 | G11: Affecté | J11: R
A12: 11002377R | B12: ADJED | C12: HAYOU EDITH FLORE | D12: F | E12: 2000-03-27 | F12: 6ème3 | G12: Affecté
A13: 06121925W | B13: ADJED | C13: MARC ARTHUR | D13: M | E13: 2004-04-14 | F13: 6ème3 | G13: Affecté
A14: 13217173G | B14: ADJO | C14: MARIE ANGE CHRISTELLE | D14: F | E14: 2000-09-10 | F14: 6ème3 | G14: Affecté
A15: 14239542Z | B15: ADJOUMAN | C15: AKEBIE GERMAINE | D15: F | E15: 2001-11-02 | F15: 6ème3 | G15: Affecté
A16: 11002711V | B16: ADODJO | C16: GÉRARD | D16: M | E16: 1999-08-08 | F16: 3ème3 | G16: Affecté | H16: OR | I16: ALL
A17: 11002605Z | B17: ADON | C17: ANDRÉA HERMANE C. | D17: F | E17: 2000-01-30 | F17: 6ème3 | G17: Affecté
A18: 14239543S | B18: ADON | C18: KAKOU SERGE | D18: M | E18: 2000-09-16 | F18: 6ème3 | G18: Affecté
A19: 14239544T | B19: ADOU | C19: AMA EDITH | D19: F | E19: 2003-03-12 | F19: 6ème3 | G19: Affecté | M19: Ivoirienne
A20: 12181991F | B20: ADOU | C20: N'GORAN CHRISTINE | D20: F | E20: 1997-12-29 | F20: 6ème3 | G20: Affecté
A21: 12181990G | B21: ADOU | C21: ELISÉE | D21: F | E21: 1997-06-07 | F21: 6ème3 | G21: Affecté
A22: 13217660P | B22: ADOU | C22: KPANGNI DIANE | D22: F | E22: 1999-09-17 | F22: 6ème3 | G22: Affecté
A23: 13217659H | B23: ADOU | C23: GRACE PHEBE BEATRICE DORIA | D23: F | E23: 2001-09-29 | F23: 6ème3 | G23: Affecté
A24: 11003546C | B24: AFFI | C24: ETTIEN MARINA | D24: F | E24: 1997-10-15 | F24: 6ème3 | G24: Affecté
A25: 10120411L | B25: AFFI | C25: KAMENAN JACQUES | D25: M | E25: 2000-01-02 | F25: 6ème3 | G25: Affecté
A26: 14239831N | B26: AFFI | C26: N'DRI FLORENTIN | D26: M | E26: 2003-10-22 | F26: 6ème3 | G26: Affecté
A27: 12180433R | B27: AFFLOMOU | C27: AMOAN FRANÇOISE | D27: F | E27: 2001-02-27 | F27: 6ème3 | G27: Affecté
A28: 12181992W | B28: AFFROUMOU | C28: NANDO JEAN CLAUDE FABRICE | D28: M | E28: 1998-08-18 | F28: 3ème1 | G28: Affecté
A29: 12181993X | B29: AGAMA | C29: ETTIEN AGNES | D29: F | E29: 2000-01-22 | F29: 6ème3 | G29: Affecté
A30: 11003729N | B30: AGAMA | C30: AKISSI ESTELLE | D30: F | E30: 1998-05-12 | F30: 6ème3 | G30: Affecté
A31: 11004117P | B31: AGNIN | C31: KACOU ELOI | D31: M | E31: 2000-01-01 | F31: 6ème3 | G31: Affecté
A32: 12182130D | B32: AGNIN | C32: OI AGNIN MARTIN | D32: M | E32: 2001-06-24 | F32: 6ème3 | G32: Affecté
A33: 13217671M | B33: AGNIN | C33: KACOU JEAN ULRICH | D33: M | E33: 2001-04-28 | F33: 6ème3 | G33: Affecté
A34: 14239690E | B34: AGOUSSI | C34: AKE JOSEPH | D34: M | E34: 2000-01-27 | F34: 6ème3 | G34: Affecté
A35: 41454122K | B35: DOUE | C35: Yeou | D35: F | E35: 2022-02-10 | F35: 6ème3 | G35: Affecté | K35: E | M35: Ivoirienne
A36: 25336588J | B36: KASSI | C36: Jeremi | D36: M | E36: 2000-02-10 | F36: 6ème3 | G36: Affecté | K36: OUME | M36: Ivoirienne
A37: 10120456R | B37: KOFFI | C37: KOUASSI BLAISE | D37: M | E37: 2000-05-02 | F37: 3ème3 | G37: Affecté | I37: ALL | J37: R | L37: \Images\Mat2.jpg
A38: 22758799P | B38: KOFFI | C38: Cisse | D38: F | E38: 2000-02-12 | F38: 6ème3 | G38: Affecté | K38: ADZOPE | M38: Ivoirienne
A39: 22020201J | B39: KONE | C39: Isaac | D39: F | E39: 2000-02-12 | F39: 6ème3 | G39: Affecté | K39: ABOBO | M39: Ivoirienne
A40: 12134576D | B40: KOUASSI | C40: KONAN FRANCK | D40: M | E40: 1978-12-12 | F40: 6ème3 | G40: Affecté
A41: 22101214L | B41: KOUASSI | C41: Joseph | D41: M | E41: 2020-05-10 | F41: 6ème3 | G41: Affecté | J41: R | K41: ABOBO | M41: Ivoirienne
A42: 12134456H | B42: SAWADOGO | C42: MARCEL | D42: M | E42: 2004-04-13 | F42: 6ème3 | G42: Affecté
A43: 21222123B | B43: SERY | C43: Serge | D43: F | E43: 2022-01-10 | F43: 6ème3 | G43: Affecté | J43: R | K43: YOPOUGON | M43: Ivoirienne
A44: 22545485F | B44: YEOU | C44: Ben | D44: F | E44: 2020-05-01 | F44: 6ème3 | G44: Affecté | K44: BOUNA | M44: Ivoirienne
A45: 22452158H | B45: ZADY | C45: Irene | D45: F | E45: 2022-02-01 | F45: 6ème3 | G45: Affecté | K45: ABENG | M45: Ivoirienne
A46: 21220201Y | B46: ZADY | C46: Melaine | D46: M | E46: 2000-02-01 | F46: 6ème3 | G46: Affecté | J46: R | K46: FERKE | M46: Ivoirienne
A47: 23525452M | B47: ZADY | C47: Zere | D47: F | E47: 2000-01-02 | F47: TleG1A | G47: Affecté | J47: R | K47: GOH | M47: Ivoirienne

Sheet BDT1 (hidden)
A1: Matricule | B1: Classe | C1: Total | D1: Moy | E1: CF | F1: OG | G1: EE | H1: HG | I1: MATH | J1: AP | K1: PC | L1: SVT | M1: EPS | N1: COND | O1: EDHC | P1: LV2 | Q1: FR | R1: PHIL | S1: ANG
A2: 07100101T | B2: =VLOOKUP(Table_T1[[#This Row],[Matricule]],Table_Elève[[Matricule]:[Classe]],6,0) -> 6ème3 | C2: =IF(COUNT(Table_T1[[#This Row],[CF]:[ANG]])=0,"",ROUND(SUM(Table_T1[[#This Row],[CF]:[ANG]]),2)) -> 58 | D2: =IF(Table_T1[Total]="","",ROUND(AVERAGE(Table_T1[[#This Row],[CF]:[ANG]]),2)) -> 7.25 | H2: 2 | I2: 2 | K2: 11 | L2: 2 | M2: 15 | N2: 16 | P2: 4 | Q2: 6
A3: 10120411L | B3: =VLOOKUP(Table_T1[[#This Row],[Matricule]],Table_Elève[[Matricule]:[Classe]],6,0) -> 6ème3 | C3: =IF(COUNT(Table_T1[[#This Row],[CF]:[ANG]])=0,"",ROUND(SUM(Table_T1[[#This Row],[CF]:[ANG]]),2)) -> 111 | D3: =IF(Table_T1[Total]="","",ROUND(AVERAGE(Table_T1[[#This Row],[CF]:[ANG]]),2)) -> 9.25 | E3: 4 | F3: 15 | G3: 6 | H3: 6 | I3: 3 | J3: 16 | K3: 10 | L3: 1 | M3: 14 | N3: 14 | O3: 17 | P3: 5
A4: 10120456R | B4: =VLOOKUP(Table_T1[[#This Row],[Matricule]],Table_Elève[[Matricule]:[Classe]],6,0) -> 3ème3 | C4: =IF(COUNT(Table_T1[[#This Row],[CF]:[ANG]])=0,"",ROUND(SUM(Table_T1[[#This Row],[CF]:[ANG]]),2)) -> 187 | D4: =IF(Table_T1[Total]="","",ROUND(AVERAGE(Table_T1[[#This Row],[CF]:[ANG]]),2)) -> 12.47 | E4: 10 | F4: 11 | G4: 14 | H4: 11 | I4: 11 | J4: 10 | K4: 18 | L4: 15 | M4: 12 | N4: 15 | O4: 15 | P4: 10 | Q4: 11 | R4: 12 | S4: 12
A5: 11000345T | B5: =VLOOKUP(Table_T1[[#This Row],[Matricule]],Table_Elève[[Matricule]:[Classe]],6,0) -> 6ème3 | C5: =IF(COUNT(Table_T1[[#This Row],[CF]:[ANG]])=0,"",ROUND(SUM(Table_T1[[#This Row],[CF]:[ANG]]),2)) -> 15 | D5: =IF(Table_T1[Total]="","",ROUND(AVERAGE(Table_T1[[#This Row],[CF]:[ANG]]),2)) -> 15 | P5: 15
A6: 11002332P | B6: =VLOOKUP(Table_T1[[#This Row],[Matricule]],Table_Elève[[Matricule]:[Classe]],6,0) -> 6ème3 | C6: =IF(COUNT(Table_T1[[#This Row],[CF]:[ANG]])=0,"",ROUND(SUM(Table_T1[[#This Row],[CF]:[ANG]]),2)) -> 138 | D6: =IF(Table_T1[Total]="","",ROUND(AVERAGE(Table_T1[[#This Row],[CF]:[ANG]]),2)) -> 11.5 | E6: 17 | F6: 17 | G6: 8 | H6: 13 | I6: 1 | J6: 16 | K6: 12 | L6: 3 | M6: 16 | N6: 17 | O6: 15 | P6: 3
A7: 11002377R | B7: =VLOOKUP(Table_T1[[#This Row],[Matricule]],Table_Elève[[Matricule]:[Classe]],6,0) -> 6ème3 | C7: =IF(COUNT(Table_T1[[#This Row],[CF]:[ANG]])=0,"",ROUND(SUM(Table_T1[[#This Row],[CF]:[ANG]]),2)) -> 115 | D7: =IF(Table_T1[Total]="","",ROUND(AVERAGE(Table_T1[[#This Row],[CF]:[ANG]]),2)) -> 9.58 | E7: 2 | F7: 16 | G7: 7 | H7: 8 | I7: 2 | J7: 16 | K7: 11 | L7: 2 | M7: 15 | N7: 16 | O7: 16 | P7: 4
A8: 11002605Z | B8: =VLOOKUP(Table_T1[[#This Row],[Matricule]],Table_Elève[[Matricule]:[Classe]],6,0) -> 6ème3 | C8: =IF(COUNT(Table_T1[[#This Row],[CF]:[ANG]])=0,"",ROUND(SUM(Table_T1[[#This Row],[CF]:[ANG]]),2)) -> 101 | D8: =IF(Table_T1[Total]="","",ROUND(AVERAGE(Table_T1[[#This Row],[CF]:[ANG]]),2)) -> 9.18 | E8: 5 | F8: 15 | G8: 6 | H8: 9 | I8: 3 | J8: 16 | K8: 10 | L8: 1 | M8: Disp | N8: 14 | O8: 17 | P8: 5
A9: 11002711V | B9: =VLOOKUP(Table_T1[[#This Row],[Matricule]],Table_Elève[[Matricule]:[Classe]],6,0) -> 3ème3 | C9: =IF(COUNT(Table_T1[[#This Row],[CF]:[ANG]])=0,"",ROUND(SUM(Table_T1[[#This Row],[CF]:[ANG]]),2)) -> 103 | D9: =IF(Table_T1[Total]="","",ROUND(AVERAGE(Table_T1[[#This Row],[CF]:[ANG]]),2)) -> 9.36 | E9: 13 | F9: 15 | G9: 6 | H9: 3 | I9: 3 | J9: 16 | K9: 10 | L9: 1 | N9: 14 | O9: 17 | P9: 5
A10: 11003546C | B10: =VLOOKUP(Table_T1[[#This Row],[Matricule]],Table_Elève[[Matricule]:[Classe]],6,0) -> 6ème3 | C10: =IF(COUNT(Table_T1[[#This Row],[CF]:[ANG]])=0,"",ROUND(SUM(Table_T1[[#This Row],[CF]:[ANG]]),2)) -> 122 | D10: =IF(Table_T1[Total]="","",ROUND(AVERAGE(Table_T1[[#This Row],[CF]:[ANG]]),2)) -> 10.17 | E10: 10 | F10: 17 | G10: 8 | H10: 4 | I10: 1 | J10: 16 | K10: 12 | L10: 3 | M10: 16 | N10: 17 | O10: 15 | P10: 3
A11: 11003729N | B11: =VLOOKUP(Table_T1[[#This Row],[Matricule]],Table_Elève[[Matricule]:[Classe]],6,0) -> 6ème3 | C11: =IF(COUNT(Table_T1[[#This Row],[CF]:[ANG]])=0,"",ROUND(SUM(Table_T1[[#This Row],[CF]:[ANG]]),2)) -> 138 | D11: =IF(Table_T1[Total]="","",ROUND(AVERAGE(Table_T1[[#This Row],[CF]:[ANG]]),2)) -> 11.5 | E11: 14 | F11: 17 | G11: 8 | H11: 16 | I11: 1 | J11: 16 | K11: 12 | L11: 3 | M11: 16 | N11: 17 | O11: 15 | P11: 3
A12: 11004117P | B12: =VLOOKUP(Table_T1[[#This Row],[Matricule]],Table_Elève[[Matricule]:[Classe]],6,0) -> 6ème3 | C12: =IF(COUNT(Table_T1[[#This Row],[CF]:[ANG]])=0,"",ROUND(SUM(Table_T1[[#This Row],[CF]:[ANG]]),2)) -> 117 | D12: =IF(Table_T1[Total]="","",ROUND(AVERAGE(Table_T1[[#This Row],[CF]:[ANG]]),2)) -> 9.75 | E12: 7 | F12: 16 | G12: 7 | H12: 5 | I12: 2 | J12: 16 | K12: 11 | L12: 2 | M12: 15 | N12: 16 | O12: 16 | P12: 4
A13: 12134456H | B13: =VLOOKUP(Table_T1[[#This Row],[Matricule]],Table_Elève[[Matricule]:[Classe]],6,0) -> 6ème3 | C13: =IF(COUNT(Table_T1[[#This Row],[CF]:[ANG]])=0,"",ROUND(SUM(Table_T1[[#This Row],[CF]:[ANG]]),2)) -> 138 | D13: =IF(Table_T1[Total]="","",ROUND(AVERAGE(Table_T1[[#This Row],[CF]:[ANG]]),2)) -> 12.55 | E13: 19 | F13: 17 | G13: 8 | H13: 14 | I13: 1 | J13: 16 | K13: 12 | L13: 3 | M13: 16 | N13: 17 | O13: 15
A14: 12134576D | B14: =VLOOKUP(Table_T1[[#This Row],[Matricule]],Table_Elève[[Matricule]:[Classe]],6,0) -> 6ème3 | C14: =IF(COUNT(Table_T1[[#This Row],[CF]:[ANG]])=0,"",ROUND(SUM(Table_T1[[#This Row],[CF]:[ANG]]),2)) -> 131 | D14: =IF(Table_T1[Total]="","",ROUND(AVERAGE(Table_T1[[#This Row],[CF]:[ANG]]),2)) -> 11.91 | E14: 18 | F14: 17 | G14: 8 | H14: 8 | I14: 1 | J14: 16 | K14: 12 | L14: 3 | M14: 16 | N14: 17 | O14: 15
A15: 12180433R | B15: =VLOOKUP(Table_T1[[#This Row],[Matricule]],Table_Elève[[Matricule]:[Classe]],6,0) -> 6ème3 | C15: =IF(COUNT(Table_T1[[#This Row],[CF]:[ANG]])=0,"",ROUND(SUM(Table_T1[[#This Row],[CF]:[ANG]]),2)) -> 129 | D15: =IF(Table_T1[Total]="","",ROUND(AVERAGE(Table_T1[[#This Row],[CF]:[ANG]]),2)) -> 11.73 | E15: 5 | F15: 17 | G15: 8 | H15: 19 | I15: 1 | J15: 16 | K15: 12 | L15: 3 | M15: 16 | N15: 17 | O15: 15
A16: 12181990G | B16: =VLOOKUP(Table_T1[[#This Row],[Matricule]],Table_Elève[[Matricule]:[Classe]],6,0) -> 6ème3 | C16: =IF(COUNT(Table_T1[[#This Row],[CF]:[ANG]])=0,"",ROUND(SUM(Table_T1[[#This Row],[CF]:[ANG]]),2)) -> 132 | D16: =IF(Table_T1[Total]="","",ROUND(AVERAGE(Table_T1[[#This Row],[CF]:[ANG]]),2)) -> 11 | E16: 17 | F16: 15 | G16: 6 | H16: 14 | I16: 3 | J16: 16 | K16: 10 | L16: 1 | M16: 14 | N16: 14 | O16: 17 | P16: 5
A17: 12181991F | B17: =VLOOKUP(Table_T1[[#This Row],[Matricule]],Table_Elève[[Matricule]:[Classe]],6,0) -> 6ème3 | C17: =IF(COUNT(Table_T1[[#This Row],[CF]:[ANG]])=0,"",ROUND(SUM(Table_T1[[#This Row],[CF]:[ANG]]),2)) -> 140 | D17: =IF(Table_T1[Total]="","",ROUND(AVERAGE(Table_T1[[#This Row],[CF]:[ANG]]),2)) -> 11.67 | E17: 20 | F17: 16 | G17: 7 | H17: 15 | I17: 2 | J17: 16 | K17: 11 | L17: 2 | M17: 15 | N17: 16 | O17: 16 | P17: 4
A18: 12181992W | B18: =VLOOKUP(Table_T1[[#This Row],[Matricule]],Table_Elève[[Matricule]:[Classe]],6,0) -> 3ème1 | C18: =IF(COUNT(Table_T1[[#This Row],[CF]:[ANG]])=0,"",ROUND(SUM(Table_T1[[#This Row],[CF]:[ANG]]),2)) -> 109 | D18: =IF(Table_T1[Total]="","",ROUND(AVERAGE(Table_T1[[#This Row],[CF]:[ANG]]),2)) -> 9.91 | E18: 8 | F18: 17 | G18: 8 | H18: 10 | I18: 1 | J18: 16 | K18: 12 | L18: 3 | M18: 16 | O18: 15 | P18: 3
A19: 12181993X | B19: =VLOOKUP(Table_T1[[#This Row],[Matricule]],Table_Elève[[Matricule]:[Classe]],6,0) -> 6ème3 | C19: =IF(COUNT(Table_T1[[#This Row],[CF]:[ANG]])=0,"",ROUND(SUM(Table_T1[[#This Row],[CF]:[ANG]]),2)) -> 127 | D19: =IF(Table_T1[Total]="","",ROUND(AVERAGE(Table_T1[[#This Row],[CF]:[ANG]]),2)) -> 10.58 | E19: 11 | F19: 16 | G19: 7 | H19: 11 | I19: 2 | J19: 16 | K19: 11 | L19: 2 | M19: 15 | N19: 16 | O19: 16 | P19: 4
A20: 12182130D | B20: =VLOOKUP(Table_T1[[#This Row],[Matricule]],Table_Elève[[Matricule]:[Classe]],6,0) -> 6ème3 | C20: =IF(COUNT(Table_T1[[#This Row],[CF]:[ANG]])=0,"",ROUND(SUM(Table_T1[[#This Row],[CF]:[ANG]]),2)) -> 127 | D20: =IF(Table_T1[Total]="","",ROUND(AVERAGE(Table_T1[[#This Row],[CF]:[ANG]]),2)) -> 10.58 | E20: 14 | F20: 15 | G20: 6 | H20: 12 | I20: 3 | J20: 16 | K20: 10 | L20: 1 | M20: 14 | N20: 14 | O20: 17 | P20: 5
A21: 13217171Q | B21: =VLOOKUP(Table_T1[[#This Row],[Matricule]],Table_Elève[[Matricule]:[Classe]],6,0) -> 6ème3 | C21: =IF(COUNT(Table_T1[[#This Row],[CF]:[ANG]])=0,"",ROUND(SUM(Table_T1[[#This Row],[CF]:[ANG]]),2)) -> 111 | D21: =IF(Table_T1[Total]="","",ROUND(AVERAGE(Table_T1[[#This Row],[CF]:[ANG]]),2)) -> 10.09 | E21: 7 | F21: 16 | G21: 7 | H21: 3 | I21: 2 | J21: 16 | K21: 11 | L21: 2 | M21: 15 | N21: 16 | O21: 16
A22: 13217173G | B22: =VLOOKUP(Table_T1[[#This Row],[Matricule]],Table_Elève[[Matricule]:[Classe]],6,0) -> 6ème3 | C22: =IF(COUNT(Table_T1[[#This Row],[CF]:[ANG]])=0,"",ROUND(SUM(Table_T1[[#This Row],[CF]:[ANG]]),2)) -> 129 | D22: =IF(Table_T1[Total]="","",ROUND(AVERAGE(Table_T1[[#This Row],[CF]:[ANG]]),2)) -> 11.73 | E22: 11 | F22: 16 | G22: 7 | H22: 17 | I22: 2 | J22: 16 | K22: 11 | L22: 2 | M22: 15 | N22: 16 | O22: 16
A23: 13217658G | B23: =VLOOKUP(Table_T1[[#This Row],[Matricule]],Table_Elève[[Matricule]:[Classe]],6,0) -> 6ème3 | C23: =IF(COUNT(Table_T1[[#This Row],[CF]:[ANG]])=0,"",ROUND(SUM(Table_T1[[#This Row],[CF]:[ANG]]),2)) -> 123 | D23: =IF(Table_T1[Total]="","",ROUND(AVERAGE(Table_T1[[#This Row],[CF]:[ANG]]),2)) -> 11.18 | E23: 16 | F23: 16 | G23: 7 | H23: 6 | I23: 2 | J23: 16 | K23: 11 | L23: 2 | M23: 15 | N23: 16 | O23: 16
A24: 13217659H | B24: =VLOOKUP(Table_T1[[#This Row],[Matricule]],Table_Elève[[Matricule]:[Classe]],6,0) -> 6ème3 | C24: =IF(COUNT(Table_T1[[#This Row],[CF]:[ANG]])=0,"",ROUND(SUM(Table_T1[[#This Row],[CF]:[ANG]]),2)) -> 123 | D24: =IF(Table_T1[Total]="","",ROUND(AVERAGE(Table_T1[[#This Row],[CF]:[ANG]]),2)) -> 11.18 | E24: 2 | F24: 16 | G24: 7 | H24: 20 | I24: 2 | J24: 16 | K24: 11 | L24: 2 | M24: 15 | N24: 16 | O24: 16
A25: 13217660P | B25: =VLOOKUP(Table_T1[[#This Row],[Matricule]],Table_Elève[[Matricule]:[Classe]],6,0) -> 6ème3 | C25: =IF(COUNT(Table_T1[[#This Row],[CF]:[ANG]])=0,"",ROUND(SUM(Table_T1[[#This Row],[CF]:[ANG]]),2)) -> 122 | D25: =IF(Table_T1[Total]="","",ROUND(AVERAGE(Table_T1[[#This Row],[CF]:[ANG]]),2)) -> 11.09 | E25: 8 | F25: 15 | G25: 6 | H25: 18 | I25: 3 | J25: 16 | K25: 10 | L25: 1 | M25: 14 | N25: 14 | O25: 17
A26: 13217671M | B26: =VLOOKUP(Table_T1[[#This Row],[Matricule]],Table_Elève[[Matricule]:[Classe]],6,0) -> 6ème3 | C26: =IF(COUNT(Table_T1[[#This Row],[CF]:[ANG]])=0,"",ROUND(SUM(Table_T1[[#This Row],[CF]:[ANG]]),2)) -> 98 | D26: =IF(Table_T1[Total]="","",ROUND(AVERAGE(Table_T1[[#This Row],[CF]:[ANG]]),2)) -> 8.91 | E26: 1 | F26: 15 | G26: 6 | H26: 1 | I26: 3 | J26: 16 | K26: 10 | L26: 1 | M26: 14 | N26: 14 | O26: 17
A27: 13217826G | B27: =VLOOKUP(Table_T1[[#This Row],[Matricule]],Table_Elève[[Matricule]:[Classe]],6,0) -> 6ème3 | C27: =IF(COUNT(Table_T1[[#This Row],[CF]:[ANG]])=0,"",ROUND(SUM(Table_T1[[#This Row],[CF]:[ANG]]),2)) -> 119 | D27: =IF(Table_T1[Total]="","",ROUND(AVERAGE(Table_T1[[#This Row],[CF]:[ANG]]),2)) -> 10.82 | E27: 6 | F27: 16 | G27: 7 | H27: 12 | I27: 2 | J27: 16 | K27: 11 | L27: 2 | M27: 15 | N27: 16 | O27: 16
A28: 14238228G | B28: =VLOOKUP(Table_T1[[#This Row],[Matricule]],Table_Elève[[Matricule]:[Classe]],6,0) -> 6ème3 | C28: =IF(COUNT(Table_T1[[#This Row],[CF]:[ANG]])=0,"",ROUND(SUM(Table_T1[[#This Row],[CF]:[ANG]]),2)) -> 125 | D28: =IF(Table_T1[Total]="","",ROUND(AVERAGE(Table_T1[[#This Row],[CF]:[ANG]]),2)) -> 11.36 | E28: 15 | F28: 16 | G28: 7 | H28: 9 | I28: 2 | J28: 16 | K28: 11 | L28: 2 | M28: 15 | N28: 16 | O28: 16
A29: 14239542Z | B29: =VLOOKUP(Table_T1[[#This Row],[Matricule]],Table_Elève[[Matricule]:[Classe]],6,0) -> 6ème3 | C29: =IF(COUNT(Table_T1[[#This Row],[CF]:[ANG]])=0,"",ROUND(SUM(Table_T1[[#This Row],[CF]:[ANG]]),2)) -> 112 | D29: =IF(Table_T1[Total]="","",ROUND(AVERAGE(Table_T1[[#This Row],[CF]:[ANG]]),2)) -> 10.18 | E29: 3 | F29: 15 | G29: 6 | H29: 13 | I29: 3 | J29: 16 | K29: 10 | L29: 1 | M29: 14 | N29: 14 | O29: 17
A30: 14239543S | B30: =VLOOKUP(Table_T1[[#This Row],[Matricule]],Table_Elève[[Matricule]:[Classe]],6,0) -> 6ème3 | C30: =IF(COUNT(Table_T1[[#This Row],[CF]:[ANG]])=0,"",ROUND(SUM(Table_T1[[#This Row],[CF]:[ANG]]),2)) -> 118 | D30: =IF(Table_T1[Total]="","",ROUND(AVERAGE(Table_T1[[#This Row],[CF]:[ANG]]),2)) -> 10.73 | E30: 12 | F30: 15 | G30: 6 | H30: 10 | I30: 3 | J30: 16 | K30: 10 | L30: 1 | M30: 14 | N30: 14 | O30: 17
A31: 14239544T | B31: =VLOOKUP(Table_T1[[#This Row],[Matricule]],Table_Elève[[Matricule]:[Classe]],6,0) -> 6ème3 | C31: =IF(COUNT(Table_T1[[#This Row],[CF]:[ANG]])=0,"",ROUND(SUM(Table_T1[[#This Row],[CF]:[ANG]]),2)) -> 49 | D31: =IF(Table_T1[Total]="","",ROUND(AVERAGE(Table_T1[[#This Row],[CF]:[ANG]]),2)) -> 8.17 | H31: 4 | I31: 3 | K31: 10 | L31: 1 | N31: 14 | O31: 17
A32: 14239688W | B32: =VLOOKUP(Table_T1[[#This Row],[Matricule]],Table_Elève[[Matricule]:[Classe]],6,0) -> 6ème3 | C32: =IF(COUNT(Table_T1[[#This Row],[CF]:[ANG]])=0,"",ROUND(SUM(Table_T1[[#This Row],[CF]:[ANG]]),2)) -> 160.81 | D32: =IF(Table_T1[Total]="","",ROUND(AVERAGE(Table_T1[[#This Row],[CF]:[ANG]]),2)) -> 14.62 | E32: 14 | F32: 18 | G32: 9 | H32: 13.5 | I32: 17.71 | J32: 16 | K32: 14.4 | L32: 13.4 | M32: 14.8 | N32: 15 | O32: 15
A33: 14239690E | B33: =VLOOKUP(Table_T1[[#This Row],[Matricule]],Table_Elève[[Matricule]:[Classe]],6,0) -> 6ème3 | C33: =IF(COUNT(Table_T1[[#This Row],[CF]:[ANG]])=0,"",ROUND(SUM(Table_T1[[#This Row],[CF]:[ANG]]),2)) -> 125 | D33: =IF(Table_T1[Total]="","",ROUND(AVERAGE(Table_T1[[#This Row],[CF]:[ANG]]),2)) -> 11.36 | E33: 9 | F33: 17 | G33: 8 | H33: 11 | I33: 1 | J33: 16 | K33: 12 | L33: 3 | M33: 16 | N33: 17 | O33: 15
A34: 14239830P | B34: =VLOOKUP(Table_T1[[#This Row],[Matricule]],Table_Elève[[Matricule]:[Classe]],6,0) -> 6ème3 | C34: =IF(COUNT(Table_T1[[#This Row],[CF]:[ANG]])=0,"",ROUND(SUM(Table_T1[[#This Row],[CF]:[ANG]]),2)) -> 123 | D34: =IF(Table_T1[Total]="","",ROUND(AVERAGE(Table_T1[[#This Row],[CF]:[ANG]]),2)) -> 11.18 | E34: 13 | F34: 17 | G34: 8 | H34: 5 | I34: 1 | J34: 16 | K34: 12 | L34: 3 | M34: 16 | N34: 17 | O34: 15
A35: 14239831N | B35: =VLOOKUP(Table_T1[[#This Row],[Matricule]],Table_Elève[[Matricule]:[Classe]],6,0) -> 6ème3 | C35: =IF(COUNT(Table_T1[[#This Row],[CF]:[ANG]])=0,"",ROUND(SUM(Table_T1[[#This Row],[CF]:[ANG]]),2)) -> 122 | D35: =IF(Table_T1[Total]="","",ROUND(AVERAGE(Table_T1[[#This Row],[CF]:[ANG]]),2)) -> 11.09 | E35: 19 | F35: 15 | G35: 6 | H35: 7 | I35: 3 | J35: 16 | K35: 10 | L35: 1 | M35: 14 | N35: 14 | O35: 17
A36: 201121T | B36: =VLOOKUP(Table_T1[[#This Row],[Matricule]],Table_Elève[[Matricule]:[Classe]],6,0) -> 6ème3 | C36: =IF(COUNT(Table_T1[[#This Row],[CF]:[ANG]])=0,"",ROUND(SUM(Table_T1[[#This Row],[CF]:[ANG]]),2)) -> 180 | D36: =IF(Table_T1[Total]="","",ROUND(AVERAGE(Table_T1[[#This Row],[CF]:[ANG]]),2)) -> 13.85 | E36: 12 | F36: 11 | G36: 11 | H36: 15 | I36: 19 | J36: 11 | K36: 11 | L36: 17 | M36: 10 | N36: 11 | P36: 19 | Q36: 16 | R36: 17
A37: 22020201J | B37: =VLOOKUP(Table_T1[[#This Row],[Matricule]],Table_Elève[[Matricule]:[Classe]],6,0) -> 6ème3 | C37: =IF(COUNT(Table_T1[[#This Row],[CF]:[ANG]])=0,"",ROUND(SUM(Table_T1[[#This Row],[CF]:[ANG]]),2)) -> 199 | D37: =IF(Table_T1[Total]="","",ROUND(AVERAGE(Table_T1[[#This Row],[CF]:[ANG]]),2)) -> 13.27 | E37: 11 | F37: 12 | G37: 14 | H37: 16 | I37: 18 | J37: 10 | K37: 11 | L37: 12 | M37: 14 | N37: 12 | O37: 11 | P37: 10 | Q37: 16 | R37: 18 | S37: 14
M47: Disp

Sheet BDT2 (hidden)
A1: Matricule | B1: Classe | C1: Total | D1: Moy | E1: CF | F1: OG | G1: EE | H1: HG | I1: MATH | J1: AP | K1: PC | L1: SVT | M1: EPS | N1: COND | O1: EDHC | P1: LV2 | Q1: FR | R1: PHIL | S1: ANG
A2: 07100101T | B2: =VLOOKUP(Table_T2[[#This Row],[Matricule]],Table_Elève[[Matricule]:[Classe]],6,0) -> 6ème3 | C2: =IF(COUNT(Table_T2[[#This Row],[CF]:[ANG]])=0,"",ROUND(SUM(Table_T2[[#This Row],[CF]:[ANG]]),2)) -> 63 | D2: =IF(Table_T2[Total]="","",ROUND(AVERAGE(Table_T2[[#This Row],[CF]:[ANG]]),2)) -> 7 | G2: 5 | H2: 2 | I2: 2 | K2: 11 | L2: 2 | M2: 15 | N2: 16 | P2: 4 | Q2: 6
A3: 10120411L | B3: =VLOOKUP(Table_T2[[#This Row],[Matricule]],Table_Elève[[Matricule]:[Classe]],6,0) -> 6ème3 | C3: =IF(COUNT(Table_T2[[#This Row],[CF]:[ANG]])=0,"",ROUND(SUM(Table_T2[[#This Row],[CF]:[ANG]]),2)) -> 111 | D3: =IF(Table_T2[Total]="","",ROUND(AVERAGE(Table_T2[[#This Row],[CF]:[ANG]]),2)) -> 9.25 | E3: 4 | F3: 15 | G3: 6 | H3: 6 | I3: 3 | J3: 16 | K3: 10 | L3: 1 | M3: 14 | N3: 14 | O3: 17 | P3: 5
A4: 10120456R | B4: =VLOOKUP(Table_T2[[#This Row],[Matricule]],Table_Elève[[Matricule]:[Classe]],6,0) -> 3ème3 | C4: =IF(COUNT(Table_T2[[#This Row],[CF]:[ANG]])=0,"",ROUND(SUM(Table_T2[[#This Row],[CF]:[ANG]]),2)) -> 220 | D4: =IF(Table_T2[Total]="","",ROUND(AVERAGE(Table_T2[[#This Row],[CF]:[ANG]]),2)) -> 14.67 | E4: 16 | F4: 17 | G4: 16 | H4: 16 | I4: 18 | J4: 11 | K4: 11 | L4: 18 | M4: 11 | N4: 15 | O4: 14 | P4: 15 | Q4: 13 | R4: 18 | S4: 11
A5: 11000345T | B5: =VLOOKUP(Table_T2[[#This Row],[Matricule]],Table_Elève[[Matricule]:[Classe]],6,0) -> 6ème3 | C5: =IF(COUNT(Table_T2[[#This Row],[CF]:[ANG]])=0,"",ROUND(SUM(Table_T2[[#This Row],[CF]:[ANG]]),2)) -> 116 | D5: =IF(Table_T2[Total]="","",ROUND(AVERAGE(Table_T2[[#This Row],[CF]:[ANG]]),2)) -> 9.67 | E5: 1 | F5: 17 | G5: 8 | H5: 7 | I5: 1 | J5: 16 | K5: 12 | L5: 3 | M5: 16 | N5: 17 | O5: 15 | P5: 3
A6: 11002332P | B6: =VLOOKUP(Table_T2[[#This Row],[Matricule]],Table_Elève[[Matricule]:[Classe]],6,0) -> 6ème3 | C6: =IF(COUNT(Table_T2[[#This Row],[CF]:[ANG]])=0,"",ROUND(SUM(Table_T2[[#This Row],[CF]:[ANG]]),2)) -> 138 | D6: =IF(Table_T2[Total]="","",ROUND(AVERAGE(Table_T2[[#This Row],[CF]:[ANG]]),2)) -> 11.5 | E6: 17 | F6: 17 | G6: 8 | H6: 13 | I6: 1 | J6: 16 | K6: 12 | L6: 3 | M6: 16 | N6: 17 | O6: 15 | P6: 3
A7: 11002377R | B7: =VLOOKUP(Table_T2[[#This Row],[Matricule]],Table_Elève[[Matricule]:[Classe]],6,0) -> 6ème3 | C7: =IF(COUNT(Table_T2[[#This Row],[CF]:[ANG]])=0,"",ROUND(SUM(Table_T2[[#This Row],[CF]:[ANG]]),2)) ->  | D7: =IF(Table_T2[Total]="","",ROUND(AVERAGE(Table_T2[[#This Row],[CF]:[ANG]]),2)) -> 
A8: 11002605Z | B8: =VLOOKUP(Table_T2[[#This Row],[Matricule]],Table_Elève[[Matricule]:[Classe]],6,0) -> 6ème3 | C8: =IF(COUNT(Table_T2[[#This Row],[CF]:[ANG]])=0,"",ROUND(SUM(Table_T2[[#This Row],[CF]:[ANG]]),2)) -> 115 | D8: =IF(Table_T2[Total]="","",ROUND(AVERAGE(Table_T2[[#This Row],[CF]:[ANG]]),2)) -> 9.58 | E8: 5 | F8: 15 | G8: 6 | H8: 9 | I8: 3 | J8: 16 | K8: 10 | L8: 1 | M8: 14 | N8: 14 | O8: 17 | P8: 5
A9: 11002711V | B9: =VLOOKUP(Table_T2[[#This Row],[Matricule]],Table_Elève[[Matricule]:[Classe]],6,0) -> 3ème3 | C9: =IF(COUNT(Table_T2[[#This Row],[CF]:[ANG]])=0,"",ROUND(SUM(Table_T2[[#This Row],[CF]:[ANG]]),2)) -> 39 | D9: =IF(Table_T2[Total]="","",ROUND(AVERAGE(Table_T2[[#This Row],[CF]:[ANG]]),2)) -> 9.75 | E9: 5 | H9: 11 | K9: 8 | P9: 15
A10: 11003546C | B10: =VLOOKUP(Table_T2[[#This Row],[Matricule]],Table_Elève[[Matricule]:[Classe]],6,0) -> 6ème3 | C10: =IF(COUNT(Table_T2[[#This Row],[CF]:[ANG]])=0,"",ROUND(SUM(Table_T2[[#This Row],[CF]:[ANG]]),2)) -> 122 | D10: =IF(Table_T2[Total]="","",ROUND(AVERAGE(Table_T2[[#This Row],[CF]:[ANG]]),2)) -> 10.17 | E10: 10 | F10: 17 | G10: 8 | H10: 4 | I10: 1 | J10: 16 | K10: 12 | L10: 3 | M10: 16 | N10: 17 | O10: 15 | P10: 3
A11: 11003729N | B11: =VLOOKUP(Table_T2[[#This Row],[Matricule]],Table_Elève[[Matricule]:[Classe]],6,0) -> 6ème3 | C11: =IF(COUNT(Table_T2[[#This Row],[CF]:[ANG]])=0,"",ROUND(SUM(Table_T2[[#This Row],[CF]:[ANG]]),2)) -> 138 | D11: =IF(Table_T2[Total]="","",ROUND(AVERAGE(Table_T2[[#This Row],[CF]:[ANG]]),2)) -> 11.5 | E11: 14 | F11: 17 | G11: 8 | H11: 16 | I11: 1 | J11: 16 | K11: 12 | L11: 3 | M11: 16 | N11: 17 | O11: 15 | P11: 3
A12: 11004117P | B12: =VLOOKUP(Table_T2[[#This Row],[Matricule]],Table_Elève[[Matricule]:[Classe]],6,0) -> 6ème3 | C12: =IF(COUNT(Table_T2[[#This Row],[CF]:[ANG]])=0,"",ROUND(SUM(Table_T2[[#This Row],[CF]:[ANG]]),2)) -> 117 | D12: =IF(Table_T2[Total]="","",ROUND(AVERAGE(Table_T2[[#This Row],[CF]:[ANG]]),2)) -> 9.75 | E12: 7 | F12: 16 | G12: 7 | H12: 5 | I12: 2 | J12: 16 | K12: 11 | L12: 2 | M12: 15 | N12: 16 | O12: 16 | P12: 4
A13: 12134456H | B13: =VLOOKUP(Table_T2[[#This Row],[Matricule]],Table_Elève[[Matricule]:[Classe]],6,0) -> 6ème3 | C13: =IF(COUNT(Table_T2[[#This Row],[CF]:[ANG]])=0,"",ROUND(SUM(Table_T2[[#This Row],[CF]:[ANG]]),2)) -> 138 | D13: =IF(Table_T2[Total]="","",ROUND(AVERAGE(Table_T2[[#This Row],[CF]:[ANG]]),2)) -> 12.55 | E13: 19 | F13: 17 | G13: 8 | H13: 14 | I13: 1 | J13: 16 | K13: 12 | L13: 3 | M13: 16 | N13: 17 | O13: 15
A14: 12134576D | B14: =VLOOKUP(Table_T2[[#This Row],[Matricule]],Table_Elève[[Matricule]:[Classe]],6,0) -> 6ème3 | C14: =IF(COUNT(Table_T2[[#This Row],[CF]:[ANG]])=0,"",ROUND(SUM(Table_T2[[#This Row],[CF]:[ANG]]),2)) -> 131 | D14: =IF(Table_T2[Total]="","",ROUND(AVERAGE(Table_T2[[#This Row],[CF]:[ANG]]),2)) -> 11.91 | E14: 18 | F14: 17 | G14: 8 | H14: 8 | I14: 1 | J14: 16 | K14: 12 | L14: 3 | M14: 16 | N14: 17 | O14: 15
A15: 12180433R | B15: =VLOOKUP(Table_T2[[#This Row],[Matricule]],Table_Elève[[Matricule]:[Classe]],6,0) -> 6ème3 | C15: =IF(COUNT(Table_T2[[#This Row],[CF]:[ANG]])=0,"",ROUND(SUM(Table_T2[[#This Row],[CF]:[ANG]]),2)) -> 129 | D15: =IF(Table_T2[Total]="","",ROUND(AVERAGE(Table_T2[[#This Row],[CF]:[ANG]]),2)) -> 11.73 | E15: 5 | F15: 17 | G15: 8 | H15: 19 | I15: 1 | J15: 16 | K15: 12 | L15: 3 | M15: 16 | N15: 17 | O15: 15
A16: 12181990G | B16: =VLOOKUP(Table_T2[[#This Row],[Matricule]],Table_Elève[[Matricule]:[Classe]],6,0) -> 6ème3 | C16: =IF(COUNT(Table_T2[[#This Row],[CF]:[ANG]])=0,"",ROUND(SUM(Table_T2[[#This Row],[CF]:[ANG]]),2)) -> 132 | D16: =IF(Table_T2[Total]="","",ROUND(AVERAGE(Table_T2[[#This Row],[CF]:[ANG]]),2)) -> 11 | E16: 17 | F16: 15 | G16: 6 | H16: 14 | I16: 3 | J16: 16 | K16: 10 | L16: 1 | M16: 14 | N16: 14 | O16: 17 | P16: 5
A17: 12181991F | B17: =VLOOKUP(Table_T2[[#This Row],[Matricule]],Table_Elève[[Matricule]:[Classe]],6,0) -> 6ème3 | C17: =IF(COUNT(Table_T2[[#This Row],[CF]:[ANG]])=0,"",ROUND(SUM(Table_T2[[#This Row],[CF]:[ANG]]),2)) -> 140 | D17: =IF(Table_T2[Total]="","",ROUND(AVERAGE(Table_T2[[#This Row],[CF]:[ANG]]),2)) -> 11.67 | E17: 20 | F17: 16 | G17: 7 | H17: 15 | I17: 2 | J17: 16 | K17: 11 | L17: 2 | M17: 15 | N17: 16 | O17: 16 | P17: 4
A18: 12181992W | B18: =VLOOKUP(Table_T2[[#This Row],[Matricule]],Table_Elève[[Matricule]:[Classe]],6,0) -> 3ème1 | C18: =IF(COUNT(Table_T2[[#This Row],[CF]:[ANG]])=0,"",ROUND(SUM(Table_T2[[#This Row],[CF]:[ANG]]),2)) -> 126 | D18: =IF(Table_T2[Total]="","",ROUND(AVERAGE(Table_T2[[#This Row],[CF]:[ANG]]),2)) -> 10.5 | E18: 8 | F18: 17 | G18: 8 | H18: 10 | I18: 1 | J18: 16 | K18: 12 | L18: 3 | M18: 16 | N18: 17 | O18: 15 | P18: 3
A19: 12181993X | B19: =VLOOKUP(Table_T2[[#This Row],[Matricule]],Table_Elève[[Matricule]:[Classe]],6,0) -> 6ème3 | C19: =IF(COUNT(Table_T2[[#This Row],[CF]:[ANG]])=0,"",ROUND(SUM(Table_T2[[#This Row],[CF]:[ANG]]),2)) -> 111 | D19: =IF(Table_T2[Total]="","",ROUND(AVERAGE(Table_T2[[#This Row],[CF]:[ANG]]),2)) -> 10.09 | E19: 11 | F19: 16 | G19: 7 | H19: 11 | I19: 2 | K19: 11 | L19: 2 | M19: 15 | N19: 16 | O19: 16 | P19: 4
A20: 12182130D | B20: =VLOOKUP(Table_T2[[#This Row],[Matricule]],Table_Elève[[Matricule]:[Classe]],6,0) -> 6ème3 | C20: =IF(COUNT(Table_T2[[#This Row],[CF]:[ANG]])=0,"",ROUND(SUM(Table_T2[[#This Row],[CF]:[ANG]]),2)) -> 127 | D20: =IF(Table_T2[Total]="","",ROUND(AVERAGE(Table_T2[[#This Row],[CF]:[ANG]]),2)) -> 10.58 | E20: 14 | F20: 15 | G20: 6 | H20: 12 | I20: 3 | J20: 16 | K20: 10 | L20: 1 | M20: 14 | N20: 14 | O20: 17 | P20: 5
A21: 13217171Q | B21: =VLOOKUP(Table_T2[[#This Row],[Matricule]],Table_Elève[[Matricule]:[Classe]],6,0) -> 6ème3 | C21: =IF(COUNT(Table_T2[[#This Row],[CF]:[ANG]])=0,"",ROUND(SUM(Table_T2[[#This Row],[CF]:[ANG]]),2)) -> 111 | D21: =IF(Table_T2[Total]="","",ROUND(AVERAGE(Table_T2[[#This Row],[CF]:[ANG]]),2)) -> 10.09 | E21: 7 | F21: 16 | G21: 7 | H21: 3 | I21: 2 | J21: 16 | K21: 11 | L21: 2 | M21: 15 | N21: 16 | O21: 16
A22: 13217173G | B22: =VLOOKUP(Table_T2[[#This Row],[Matricule]],Table_Elève[[Matricule]:[Classe]],6,0) -> 6ème3 | C22: =IF(COUNT(Table_T2[[#This Row],[CF]:[ANG]])=0,"",ROUND(SUM(Table_T2[[#This Row],[CF]:[ANG]]),2)) -> 129 | D22: =IF(Table_T2[Total]="","",ROUND(AVERAGE(Table_T2[[#This Row],[CF]:[ANG]]),2)) -> 11.73 | E22: 11 | F22: 16 | G22: 7 | H22: 17 | I22: 2 | J22: 16 | K22: 11 | L22: 2 | M22: 15 | N22: 16 | O22: 16
A23: 13217658G | B23: =VLOOKUP(Table_T2[[#This Row],[Matricule]],Table_Elève[[Matricule]:[Classe]],6,0) -> 6ème3 | C23: =IF(COUNT(Table_T2[[#This Row],[CF]:[ANG]])=0,"",ROUND(SUM(Table_T2[[#This Row],[CF]:[ANG]]),2)) -> 123 | D23: =IF(Table_T2[Total]="","",ROUND(AVERAGE(Table_T2[[#This Row],[CF]:[ANG]]),2)) -> 11.18 | E23: 16 | F23: 16 | G23: 7 | H23: 6 | I23: 2 | J23: 16 | K23: 11 | L23: 2 | M23: 15 | N23: 16 | O23: 16
A24: 13217659H | B24: =VLOOKUP(Table_T2[[#This Row],[Matricule]],Table_Elève[[Matricule]:[Classe]],6,0) -> 6ème3 | C24: =IF(COUNT(Table_T2[[#This Row],[CF]:[ANG]])=0,"",ROUND(SUM(Table_T2[[#This Row],[CF]:[ANG]]),2)) -> 123 | D24: =IF(Table_T2[Total]="","",ROUND(AVERAGE(Table_T2[[#This Row],[CF]:[ANG]]),2)) -> 11.18 | E24: 2 | F24: 16 | G24: 7 | H24: 20 | I24: 2 | J24: 16 | K24: 11 | L24: 2 | M24: 15 | N24: 16 | O24: 16
A25: 13217660P | B25: =VLOOKUP(Table_T2[[#This Row],[Matricule]],Table_Elève[[Matricule]:[Classe]],6,0) -> 6ème3 | C25: =IF(COUNT(Table_T2[[#This Row],[CF]:[ANG]])=0,"",ROUND(SUM(Table_T2[[#This Row],[CF]:[ANG]]),2)) -> 122 | D25: =IF(Table_T2[Total]="","",ROUND(AVERAGE(Table_T2[[#This Row],[CF]:[ANG]]),2)) -> 11.09 | E25: 8 | F25: 15 | G25: 6 | H25: 18 | I25: 3 | J25: 16 | K25: 10 | L25: 1 | M25: 14 | N25: 14 | O25: 17
A26: 13217671M | B26: =VLOOKUP(Table_T2[[#This Row],[Matricule]],Table_Elève[[Matricule]:[Classe]],6,0) -> 6ème3 | C26: =IF(COUNT(Table_T2[[#This Row],[CF]:[ANG]])=0,"",ROUND(SUM(Table_T2[[#This Row],[CF]:[ANG]]),2)) -> 98 | D26: =IF(Table_T2[Total]="","",ROUND(AVERAGE(Table_T2[[#This Row],[CF]:[ANG]]),2)) -> 8.91 | E26: 1 | F26: 15 | G26: 6 | H26: 1 | I26: 3 | J26: 16 | K26: 10 | L26: 1 | M26: 14 | N26: 14 | O26: 17
A27: 13217826G | B27: =VLOOKUP(Table_T2[[#This Row],[Matricule]],Table_Elève[[Matricule]:[Classe]],6,0) -> 6ème3 | C27: =IF(COUNT(Table_T2[[#This Row],[CF]:[ANG]])=0,"",ROUND(SUM(Table_T2[[#This Row],[CF]:[ANG]]),2)) -> 119 | D27: =IF(Table_T2[Total]="","",ROUND(AVERAGE(Table_T2[[#This Row],[CF]:[ANG]]),2)) -> 10.82 | E27: 6 | F27: 16 | G27: 7 | H27: 12 | I27: 2 | J27: 16 | K27: 11 | L27: 2 | M27: 15 | N27: 16 | O27: 16
A28: 14238228G | B28: =VLOOKUP(Table_T2[[#This Row],[Matricule]],Table_Elève[[Matricule]:[Classe]],6,0) -> 6ème3 | C28: =IF(COUNT(Table_T2[[#This Row],[CF]:[ANG]])=0,"",ROUND(SUM(Table_T2[[#This Row],[CF]:[ANG]]),2)) -> 125 | D28: =IF(Table_T2[Total]="","",ROUND(AVERAGE(Table_T2[[#This Row],[CF]:[ANG]]),2)) -> 11.36 | E28: 15 | F28: 16 | G28: 7 | H28: 9 | I28: 2 | J28: 16 | K28: 11 | L28: 2 | M28: 15 | N28: 16 | O28: 16
A29: 14239542Z | B29: =VLOOKUP(Table_T2[[#This Row],[Matricule]],Table_Elève[[Matricule]:[Classe]],6,0) -> 6ème3 | C29: =IF(COUNT(Table_T2[[#This Row],[CF]:[ANG]])=0,"",ROUND(SUM(Table_T2[[#This Row],[CF]:[ANG]]),2)) -> 112 | D29: =IF(Table_T2[Total]="","",ROUND(AVERAGE(Table_T2[[#This Row],[CF]:[ANG]]),2)) -> 10.18 | E29: 3 | F29: 15 | G29: 6 | H29: 13 | I29: 3 | J29: 16 | K29: 10 | L29: 1 | M29: 14 | N29: 14 | O29: 17
A30: 14239543S | B30: =VLOOKUP(Table_T2[[#This Row],[Matricule]],Table_Elève[[Matricule]:[Classe]],6,0) -> 6ème3 | C30: =IF(COUNT(Table_T2[[#This Row],[CF]:[ANG]])=0,"",ROUND(SUM(Table_T2[[#This Row],[CF]:[ANG]]),2)) -> 118 | D30: =IF(Table_T2[Total]="","",ROUND(AVERAGE(Table_T2[[#This Row],[CF]:[ANG]]),2)) -> 10.73 | E30: 12 | F30: 15 | G30: 6 | H30: 10 | I30: 3 | J30: 16 | K30: 10 | L30: 1 | M30: 14 | N30: 14 | O30: 17
A31: 14239544T | B31: =VLOOKUP(Table_T2[[#This Row],[Matricule]],Table_Elève[[Matricule]:[Classe]],6,0) -> 6ème3 | C31: =IF(COUNT(Table_T2[[#This Row],[CF]:[ANG]])=0,"",ROUND(SUM(Table_T2[[#This Row],[CF]:[ANG]]),2)) -> 49 | D31: =IF(Table_T2[Total]="","",ROUND(AVERAGE(Table_T2[[#This Row],[CF]:[ANG]]),2)) -> 8.17 | H31: 4 | I31: 3 | K31: 10 | L31: 1 | N31: 14 | O31: 17
A32: 14239688W | B32: =VLOOKUP(Table_T2[[#This Row],[Matricule]],Table_Elève[[Matricule]:[Classe]],6,0) -> 6ème3 | C32: =IF(COUNT(Table_T2[[#This Row],[CF]:[ANG]])=0,"",ROUND(SUM(Table_T2[[#This Row],[CF]:[ANG]]),2)) -> 158.81 | D32: =IF(Table_T2[Total]="","",ROUND(AVERAGE(Table_T2[[#This Row],[CF]:[ANG]]),2)) -> 14.44 | E32: 12 | F32: 18 | G32: 9 | H32: 13.5 | I32: 17.71 | J32: 16 | K32: 14.4 | L32: 13.4 | M32: 14.8 | N32: 15 | O32: 15
A33: 14239690E | B33: =VLOOKUP(Table_T2[[#This Row],[Matricule]],Table_Elève[[Matricule]:[Classe]],6,0) -> 6ème3 | C33: =IF(COUNT(Table_T2[[#This Row],[CF]:[ANG]])=0,"",ROUND(SUM(Table_T2[[#This Row],[CF]:[ANG]]),2)) -> 125 | D33: =IF(Table_T2[Total]="","",ROUND(AVERAGE(Table_T2[[#This Row],[CF]:[ANG]]),2)) -> 11.36 | E33: 9 | F33: 17 | G33: 8 | H33: 11 | I33: 1 | J33: 16 | K33: 12 | L33: 3 | M33: 16 | N33: 17 | O33: 15
A34: 14239830P | B34: =VLOOKUP(Table_T2[[#This Row],[Matricule]],Table_Elève[[Matricule]:[Classe]],6,0) -> 6ème3 | C34: =IF(COUNT(Table_T2[[#This Row],[CF]:[ANG]])=0,"",ROUND(SUM(Table_T2[[#This Row],[CF]:[ANG]]),2)) -> 123 | D34: =IF(Table_T2[Total]="","",ROUND(AVERAGE(Table_T2[[#This Row],[CF]:[ANG]]),2)) -> 11.18 | E34: 13 | F34: 17 | G34: 8 | H34: 5 | I34: 1 | J34: 16 | K34: 12 | L34: 3 | M34: 16 | N34: 17 | O34: 15
A35: 14239831N | B35: =VLOOKUP(Table_T2[[#This Row],[Matricule]],Table_Elève[[Matricule]:[Classe]],6,0) -> 6ème3 | C35: =IF(COUNT(Table_T2[[#This Row],[CF]:[ANG]])=0,"",ROUND(SUM(Table_T2[[#This Row],[CF]:[ANG]]),2)) -> 122 | D35: =IF(Table_T2[Total]="","",ROUND(AVERAGE(Table_T2[[#This Row],[CF]:[ANG]]),2)) -> 11.09 | E35: 19 | F35: 15 | G35: 6 | H35: 7 | I35: 3 | J35: 16 | K35: 10 | L35: 1 | M35: 14 | N35: 14 | O35: 17
A36: 201121T | B36: =VLOOKUP(Table_T2[[#This Row],[Matricule]],Table_Elève[[Matricule]:[Classe]],6,0) -> 6ème3 | C36: =IF(COUNT(Table_T2[[#This Row],[CF]:[ANG]])=0,"",ROUND(SUM(Table_T2[[#This Row],[CF]:[ANG]]),2)) -> 175 | D36: =IF(Table_T2[Total]="","",ROUND(AVERAGE(Table_T2[[#This Row],[CF]:[ANG]]),2)) -> 13.46 | E36: 11 | F36: 13 | G36: 15 | H36: 18 | I36: 19 | J36: 5 | K36: 18 | L36: 10 | M36: 10 | N36: 11 | P36: 11 | Q36: 17 | R36: 17
A37: 22020201J | B37: =VLOOKUP(Table_T2[[#This Row],[Matricule]],Table_Elève[[Matricule]:[Classe]],6,0) -> 6ème3 | C37: =IF(COUNT(Table_T2[[#This Row],[CF]:[ANG]])=0,"",ROUND(SUM(Table_T2[[#This Row],[CF]:[ANG]]),2)) ->  | D37: =IF(Table_T2[Total]="","",ROUND(AVERAGE(Table_T2[[#This Row],[CF]:[ANG]]),2)) -> 
M39: Disp
M40: Disp
M47: Disp

Sheet Feuil1 (hidden)

Sheet BDT3 (hidden)
A1: Matricule | B1: Classe | C1: Total | D1: Moy | E1: CF | F1: OG | G1: EE | H1: HG | I1: MATH | J1: AP | K1: PC | L1: SVT | M1: EPS | N1: COND | O1: EDHC | P1: LV2 | Q1: FR | R1: PHIL | S1: ANG
A2: 07100101T | B2: =VLOOKUP(Table_T3[[#This Row],[Matricule]],Table_Elève[[Matricule]:[Classe]],6,0) -> 6ème3 | C2: =IF(COUNT(Table_T3[[#This Row],[CF]:[ANG]])=0,"",ROUND(SUM(Table_T3[[#This Row],[CF]:[ANG]]),2)) -> 64 | D2: =IF(Table_T3[Total]="","",ROUND(AVERAGE(Table_T3[[#This Row],[CF]:[ANG]]),2)) -> 7.11 | F2: 6 | H2: 2 | I2: 2 | K2: 11 | L2: 2 | M2: 15 | N2: 16 | P2: 4 | Q2: 6
A3: 10120411L | B3: =VLOOKUP(Table_T3[[#This Row],[Matricule]],Table_Elève[[Matricule]:[Classe]],6,0) -> 6ème3 | C3: =IF(COUNT(Table_T3[[#This Row],[CF]:[ANG]])=0,"",ROUND(SUM(Table_T3[[#This Row],[CF]:[ANG]]),2)) -> 111 | D3: =IF(Table_T3[Total]="","",ROUND(AVERAGE(Table_T3[[#This Row],[CF]:[ANG]]),2)) -> 9.25 | E3: 4 | F3: 15 | G3: 6 | H3: 6 | I3: 3 | J3: 16 | K3: 10 | L3: 1 | M3: 14 | N3: 14 | O3: 17 | P3: 5
A4: 10120456R | B4: =VLOOKUP(Table_T3[[#This Row],[Matricule]],Table_Elève[[Matricule]:[Classe]],6,0) -> 3ème3 | C4: =IF(COUNT(Table_T3[[#This Row],[CF]:[ANG]])=0,"",ROUND(SUM(Table_T3[[#This Row],[CF]:[ANG]]),2)) -> 222 | D4: =IF(Table_T3[Total]="","",ROUND(AVERAGE(Table_T3[[#This Row],[CF]:[ANG]]),2)) -> 14.8 | E4: 16 | F4: 17 | G4: 16 | H4: 16 | I4: 18 | J4: 11 | K4: 11 | L4: 18 | M4: 11 | N4: 15 | O4: 14 | P4: 15 | Q4: 13 | R4: 18 | S4: 13
A5: 11000345T | B5: =VLOOKUP(Table_T3[[#This Row],[Matricule]],Table_Elève[[Matricule]:[Classe]],6,0) -> 6ème3 | C5: =IF(COUNT(Table_T3[[#This Row],[CF]:[ANG]])=0,"",ROUND(SUM(Table_T3[[#This Row],[CF]:[ANG]]),2)) -> 116 | D5: =IF(Table_T3[Total]="","",ROUND(AVERAGE(Table_T3[[#This Row],[CF]:[ANG]]),2)) -> 9.67 | E5: 1 | F5: 17 | G5: 8 | H5: 7 | I5: 1 | J5: 16 | K5: 12 | L5: 3 | M5: 16 | N5: 17 | O5: 15 | P5: 3
A6: 11002332P | B6: =VLOOKUP(Table_T3[[#This Row],[Matricule]],Table_Elève[[Matricule]:[Classe]],6,0) -> 6ème3 | C6: =IF(COUNT(Table_T3[[#This Row],[CF]:[ANG]])=0,"",ROUND(SUM(Table_T3[[#This Row],[CF]:[ANG]]),2)) -> 138 | D6: =IF(Table_T3[Total]="","",ROUND(AVERAGE(Table_T3[[#This Row],[CF]:[ANG]]),2)) -> 11.5 | E6: 17 | F6: 17 | G6: 8 | H6: 13 | I6: 1 | J6: 16 | K6: 12 | L6: 3 | M6: 16 | N6: 17 | O6: 15 | P6: 3
A7: 11002377R | B7: =VLOOKUP(Table_T3[[#This Row],[Matricule]],Table_Elève[[Matricule]:[Classe]],6,0) -> 6ème3 | C7: =IF(COUNT(Table_T3[[#This Row],[CF]:[ANG]])=0,"",ROUND(SUM(Table_T3[[#This Row],[CF]:[ANG]]),2)) ->  | D7: =IF(Table_T3[Total]="","",ROUND(AVERAGE(Table_T3[[#This Row],[CF]:[ANG]]),2)) -> 
A8: 11002605Z | B8: =VLOOKUP(Table_T3[[#This Row],[Matricule]],Table_Elève[[Matricule]:[Classe]],6,0) -> 6ème3 | C8: =IF(COUNT(Table_T3[[#This Row],[CF]:[ANG]])=0,"",ROUND(SUM(Table_T3[[#This Row],[CF]:[ANG]]),2)) -> 115 | D8: =IF(Table_T3[Total]="","",ROUND(AVERAGE(Table_T3[[#This Row],[CF]:[ANG]]),2)) -> 9.58 | E8: 5 | F8: 15 | G8: 6 | H8: 9 | I8: 3 | J8: 16 | K8: 10 | L8: 1 | M8: 14 | N8: 14 | O8: 17 | P8: 5
A9: 11002711V | B9: =VLOOKUP(Table_T3[[#This Row],[Matricule]],Table_Elève[[Matricule]:[Classe]],6,0) -> 3ème3 | C9: =IF(COUNT(Table_T3[[#This Row],[CF]:[ANG]])=0,"",ROUND(SUM(Table_T3[[#This Row],[CF]:[ANG]]),2)) -> 34 | D9: =IF(Table_T3[Total]="","",ROUND(AVERAGE(Table_T3[[#This Row],[CF]:[ANG]]),2)) -> 11.33 | H9: 11 | K9: 8 | P9: 15
A10: 11003546C | B10: =VLOOKUP(Table_T3[[#This Row],[Matricule]],Table_Elève[[Matricule]:[Classe]],6,0) -> 6ème3 | C10: =IF(COUNT(Table_T3[[#This Row],[CF]:[ANG]])=0,"",ROUND(SUM(Table_T3[[#This Row],[CF]:[ANG]]),2)) -> 122 | D10: =IF(Table_T3[Total]="","",ROUND(AVERAGE(Table_T3[[#This Row],[CF]:[ANG]]),2)) -> 10.17 | E10: 10 | F10: 17 | G10: 8 | H10: 4 | I10: 1 | J10: 16 | K10: 12 | L10: 3 | M10: 16 | N10: 17 | O10: 15 | P10: 3
A11: 11003729N | B11: =VLOOKUP(Table_T3[[#This Row],[Matricule]],Table_Elève[[Matricule]:[Classe]],6,0) -> 6ème3 | C11: =IF(COUNT(Table_T3[[#This Row],[CF]:[ANG]])=0,"",ROUND(SUM(Table_T3[[#This Row],[CF]:[ANG]]),2)) -> 138 | D11: =IF(Table_T3[Total]="","",ROUND(AVERAGE(Table_T3[[#This Row],[CF]:[ANG]]),2)) -> 11.5 | E11: 14 | F11: 17 | G11: 8 | H11: 16 | I11: 1 | J11: 16 | K11: 12 | L11: 3 | M11: 16 | N11: 17 | O11: 15 | P11: 3
A12: 11004117P | B12: =VLOOKUP(Table_T3[[#This Row],[Matricule]],Table_Elève[[Matricule]:[Classe]],6,0) -> 6ème3 | C12: =IF(COUNT(Table_T3[[#This Row],[CF]:[ANG]])=0,"",ROUND(SUM(Table_T3[[#This Row],[CF]:[ANG]]),2)) -> 117 | D12: =IF(Table_T3[Total]="","",ROUND(AVERAGE(Table_T3[[#This Row],[CF]:[ANG]]),2)) -> 9.75 | E12: 7 | F12: 16 | G12: 7 | H12: 5 | I12: 2 | J12: 16 | K12: 11 | L12: 2 | M12: 15 | N12: 16 | O12: 16 | P12: 4
A13: 12134456H | B13: =VLOOKUP(Table_T3[[#This Row],[Matricule]],Table_Elève[[Matricule]:[Classe]],6,0) -> 6ème3 | C13: =IF(COUNT(Table_T3[[#This Row],[CF]:[ANG]])=0,"",ROUND(SUM(Table_T3[[#This Row],[CF]:[ANG]]),2)) -> 138 | D13: =IF(Table_T3[Total]="","",ROUND(AVERAGE(Table_T3[[#This Row],[CF]:[ANG]]),2)) -> 12.55 | E13: 19 | F13: 17 | G13: 8 | H13: 14 | I13: 1 | J13: 16 | K13: 12 | L13: 3 | M13: 16 | N13: 17 | O13: 15
A14: 12134576D | B14: =VLOOKUP(Table_T3[[#This Row],[Matricule]],Table_Elève[[Matricule]:[Classe]],6,0) -> 6ème3 | C14: =IF(COUNT(Table_T3[[#This Row],[CF]:[ANG]])=0,"",ROUND(SUM(Table_T3[[#This Row],[CF]:[ANG]]),2)) -> 131 | D14: =IF(Table_T3[Total]="","",ROUND(AVERAGE(Table_T3[[#This Row],[CF]:[ANG]]),2)) -> 11.91 | E14: 18 | F14: 17 | G14: 8 | H14: 8 | I14: 1 | J14: 16 | K14: 12 | L14: 3 | M14: 16 | N14: 17 | O14: 15
A15: 12180433R | B15: =VLOOKUP(Table_T3[[#This Row],[Matricule]],Table_Elève[[Matricule]:[Classe]],6,0) -> 6ème3 | C15: =IF(COUNT(Table_T3[[#This Row],[CF]:[ANG]])=0,"",ROUND(SUM(Table_T3[[#This Row],[CF]:[ANG]]),2)) -> 129 | D15: =IF(Table_T3[Total]="","",ROUND(AVERAGE(Table_T3[[#This Row],[CF]:[ANG]]),2)) -> 11.73 | E15: 5 | F15: 17 | G15: 8 | H15: 19 | I15: 1 | J15: 16 | K15: 12 | L15: 3 | M15: 16 | N15: 17 | O15: 15
A16: 12181990G | B16: =VLOOKUP(Table_T3[[#This Row],[Matricule]],Table_Elève[[Matricule]:[Classe]],6,0) -> 6ème3 | C16: =IF(COUNT(Table_T3[[#This Row],[CF]:[ANG]])=0,"",ROUND(SUM(Table_T3[[#This Row],[CF]:[ANG]]),2)) -> 132 | D16: =IF(Table_T3[Total]="","",ROUND(AVERAGE(Table_T3[[#This Row],[CF]:[ANG]]),2)) -> 11 | E16: 17 | F16: 15 | G16: 6 | H16: 14 | I16: 3 | J16: 16 | K16: 10 | L16: 1 | M16: 14 | N16: 14 | O16: 17 | P16: 5
A17: 12181991F | B17: =VLOOKUP(Table_T3[[#This Row],[Matricule]],Table_Elève[[Matricule]:[Classe]],6,0) -> 6ème3 | C17: =IF(COUNT(Table_T3[[#This Row],[CF]:[ANG]])=0,"",ROUND(SUM(Table_T3[[#This Row],[CF]:[ANG]]),2)) -> 140 | D17: =IF(Table_T3[Total]="","",ROUND(AVERAGE(Table_T3[[#This Row],[CF]:[ANG]]),2)) -> 11.67 | E17: 20 | F17: 16 | G17: 7 | H17: 15 | I17: 2 | J17: 16 | K17: 11 | L17: 2 | M17: 15 | N17: 16 | O17: 16 | P17: 4
A18: 12181992W | B18: =VLOOKUP(Table_T3[[#This Row],[Matricule]],Table_Elève[[Matricule]:[Classe]],6,0) -> 3ème1 | C18: =IF(COUNT(Table_T3[[#This Row],[CF]:[ANG]])=0,"",ROUND(SUM(Table_T3[[#This Row],[CF]:[ANG]]),2)) -> 126 | D18: =IF(Table_T3[Total]="","",ROUND(AVERAGE(Table_T3[[#This Row],[CF]:[ANG]]),2)) -> 10.5 | E18: 8 | F18: 17 | G18: 8 | H18: 10 | I18: 1 | J18: 16 | K18: 12 | L18: 3 | M18: 16 | N18: 17 | O18: 15 | P18: 3
A19: 12181993X | B19: =VLOOKUP(Table_T3[[#This Row],[Matricule]],Table_Elève[[Matricule]:[Classe]],6,0) -> 6ème3 | C19: =IF(COUNT(Table_T3[[#This Row],[CF]:[ANG]])=0,"",ROUND(SUM(Table_T3[[#This Row],[CF]:[ANG]]),2)) -> 111 | D19: =IF(Table_T3[Total]="","",ROUND(AVERAGE(Table_T3[[#This Row],[CF]:[ANG]]),2)) -> 10.09 | E19: 11 | F19: 16 | G19: 7 | H19: 11 | I19: 2 | K19: 11 | L19: 2 | M19: 15 | N19: 16 | O19: 16 | P19: 4
A20: 12182130D | B20: =VLOOKUP(Table_T3[[#This Row],[Matricule]],Table_Elève[[Matricule]:[Classe]],6,0) -> 6ème3 | C20: =IF(COUNT(Table_T3[[#This Row],[CF]:[ANG]])=0,"",ROUND(SUM(Table_T3[[#This Row],[CF]:[ANG]]),2)) -> 127 | D20: =IF(Table_T3[Total]="","",ROUND(AVERAGE(Table_T3[[#This Row],[CF]:[ANG]]),2)) -> 10.58 | E20: 14 | F20: 15 | G20: 6 | H20: 12 | I20: 3 | J20: 16 | K20: 10 | L20: 1 | M20: 14 | N20: 14 | O20: 17 | P20: 5
A21: 13217171Q | B21: =VLOOKUP(Table_T3[[#This Row],[Matricule]],Table_Elève[[Matricule]:[Classe]],6,0) -> 6ème3 | C21: =IF(COUNT(Table_T3[[#This Row],[CF]:[ANG]])=0,"",ROUND(SUM(Table_T3[[#This Row],[CF]:[ANG]]),2)) -> 111 | D21: =IF(Table_T3[Total]="","",ROUND(AVERAGE(Table_T3[[#This Row],[CF]:[ANG]]),2)) -> 10.09 | E21: 7 | F21: 16 | G21: 7 | H21: 3 | I21: 2 | J21: 16 | K21: 11 | L21: 2 | M21: 15 | N21: 16 | O21: 16
A22: 13217173G | B22: =VLOOKUP(Table_T3[[#This Row],[Matricule]],Table_Elève[[Matricule]:[Classe]],6,0) -> 6ème3 | C22: =IF(COUNT(Table_T3[[#This Row],[CF]:[ANG]])=0,"",ROUND(SUM(Table_T3[[#This Row],[CF]:[ANG]]),2)) -> 129 | D22: =IF(Table_T3[Total]="","",ROUND(AVERAGE(Table_T3[[#This Row],[CF]:[ANG]]),2)) -> 11.73 | E22: 11 | F22: 16 | G22: 7 | H22: 17 | I22: 2 | J22: 16 | K22: 11 | L22: 2 | M22: 15 | N22: 16 | O22: 16
A23: 13217658G | B23: =VLOOKUP(Table_T3[[#This Row],[Matricule]],Table_Elève[[Matricule]:[Classe]],6,0) -> 6ème3 | C23: =IF(COUNT(Table_T3[[#This Row],[CF]:[ANG]])=0,"",ROUND(SUM(Table_T3[[#This Row],[CF]:[ANG]]),2)) -> 123 | D23: =IF(Table_T3[Total]="","",ROUND(AVERAGE(Table_T3[[#This Row],[CF]:[ANG]]),2)) -> 11.18 | E23: 16 | F23: 16 | G23: 7 | H23: 6 | I23: 2 | J23: 16 | K23: 11 | L23: 2 | M23: 15 | N23: 16 | O23: 16
A24: 13217659H | B24: =VLOOKUP(Table_T3[[#This Row],[Matricule]],Table_Elève[[Matricule]:[Classe]],6,0) -> 6ème3 | C24: =IF(COUNT(Table_T3[[#This Row],[CF]:[ANG]])=0,"",ROUND(SUM(Table_T3[[#This Row],[CF]:[ANG]]),2)) -> 123 | D24: =IF(Table_T3[Total]="","",ROUND(AVERAGE(Table_T3[[#This Row],[CF]:[ANG]]),2)) -> 11.18 | E24: 2 | F24: 16 | G24: 7 | H24: 20 | I24: 2 | J24: 16 | K24: 11 | L24: 2 | M24: 15 | N24: 16 | O24: 16
A25: 13217660P | B25: =VLOOKUP(Table_T3[[#This Row],[Matricule]],Table_Elève[[Matricule]:[Classe]],6,0) -> 6ème3 | C25: =IF(COUNT(Table_T3[[#This Row],[CF]:[ANG]])=0,"",ROUND(SUM(Table_T3[[#This Row],[CF]:[ANG]]),2)) -> 122 | D25: =IF(Table_T3[Total]="","",ROUND(AVERAGE(Table_T3[[#This Row],[CF]:[ANG]]),2)) -> 11.09 | E25: 8 | F25: 15 | G25: 6 | H25: 18 | I25: 3 | J25: 16 | K25: 10 | L25: 1 | M25: 14 | N25: 14 | O25: 17
A26: 13217671M | B26: =VLOOKUP(Table_T3[[#This Row],[Matricule]],Table_Elève[[Matricule]:[Classe]],6,0) -> 6ème3 | C26: =IF(COUNT(Table_T3[[#This Row],[CF]:[ANG]])=0,"",ROUND(SUM(Table_T3[[#This Row],[CF]:[ANG]]),2)) -> 98 | D26: =IF(Table_T3[Total]="","",ROUND(AVERAGE(Table_T3[[#This Row],[CF]:[ANG]]),2)) -> 8.91 | E26: 1 | F26: 15 | G26: 6 | H26: 1 | I26: 3 | J26: 16 | K26: 10 | L26: 1 | M26: 14 | N26: 14 | O26: 17
A27: 13217826G | B27: =VLOOKUP(Table_T3[[#This Row],[Matricule]],Table_Elève[[Matricule]:[Classe]],6,0) -> 6ème3 | C27: =IF(COUNT(Table_T3[[#This Row],[CF]:[ANG]])=0,"",ROUND(SUM(Table_T3[[#This Row],[CF]:[ANG]]),2)) -> 119 | D27: =IF(Table_T3[Total]="","",ROUND(AVERAGE(Table_T3[[#This Row],[CF]:[ANG]]),2)) -> 10.82 | E27: 6 | F27: 16 | G27: 7 | H27: 12 | I27: 2 | J27: 16 | K27: 11 | L27: 2 | M27: 15 | N27: 16 | O27: 16
A28: 14238228G | B28: =VLOOKUP(Table_T3[[#This Row],[Matricule]],Table_Elève[[Matricule]:[Classe]],6,0) -> 6ème3 | C28: =IF(COUNT(Table_T3[[#This Row],[CF]:[ANG]])=0,"",ROUND(SUM(Table_T3[[#This Row],[CF]:[ANG]]),2)) -> 125 | D28: =IF(Table_T3[Total]="","",ROUND(AVERAGE(Table_T3[[#This Row],[CF]:[ANG]]),2)) -> 11.36 | E28: 15 | F28: 16 | G28: 7 | H28: 9 | I28: 2 | J28: 16 | K28: 11 | L28: 2 | M28: 15 | N28: 16 | O28: 16
A29: 14239542Z | B29: =VLOOKUP(Table_T3[[#This Row],[Matricule]],Table_Elève[[Matricule]:[Classe]],6,0) -> 6ème3 | C29: =IF(COUNT(Table_T3[[#This Row],[CF]:[ANG]])=0,"",ROUND(SUM(Table_T3[[#This Row],[CF]:[ANG]]),2)) -> 112 | D29: =IF(Table_T3[Total]="","",ROUND(AVERAGE(Table_T3[[#This Row],[CF]:[ANG]]),2)) -> 10.18 | E29: 3 | F29: 15 | G29: 6 | H29: 13 | I29: 3 | J29: 16 | K29: 10 | L29: 1 | M29: 14 | N29: 14 | O29: 17
A30: 14239543S | B30: =VLOOKUP(Table_T3[[#This Row],[Matricule]],Table_Elève[[Matricule]:[Classe]],6,0) -> 6ème3 | C30: =IF(COUNT(Table_T3[[#This Row],[CF]:[ANG]])=0,"",ROUND(SUM(Table_T3[[#This Row],[CF]:[ANG]]),2)) -> 118 | D30: =IF(Table_T3[Total]="","",ROUND(AVERAGE(Table_T3[[#This Row],[CF]:[ANG]]),2)) -> 10.73 | E30: 12 | F30: 15 | G30: 6 | H30: 10 | I30: 3 | J30: 16 | K30: 10 | L30: 1 | M30: 14 | N30: 14 | O30: 17
A31: 14239544T | B31: =VLOOKUP(Table_T3[[#This Row],[Matricule]],Table_Elève[[Matricule]:[Classe]],6,0) -> 6ème3 | C31: =IF(COUNT(Table_T3[[#This Row],[CF]:[ANG]])=0,"",ROUND(SUM(Table_T3[[#This Row],[CF]:[ANG]]),2)) -> 49 | D31: =IF(Table_T3[Total]="","",ROUND(AVERAGE(Table_T3[[#This Row],[CF]:[ANG]]),2)) -> 8.17 | H31: 4 | I31: 3 | K31: 10 | L31: 1 | N31: 14 | O31: 17
A32: 14239688W | B32: =VLOOKUP(Table_T3[[#This Row],[Matricule]],Table_Elève[[Matricule]:[Classe]],6,0) -> 6ème3 | C32: =IF(COUNT(Table_T3[[#This Row],[CF]:[ANG]])=0,"",ROUND(SUM(Table_T3[[#This Row],[CF]:[ANG]]),2)) -> 158.81 | D32: =IF(Table_T3[Total]="","",ROUND(AVERAGE(Table_T3[[#This Row],[CF]:[ANG]]),2)) -> 14.44 | E32: 12 | F32: 18 | G32: 9 | H32: 13.5 | I32: 17.71 | J32: 16 | K32: 14.4 | L32: 13.4 | M32: 14.8 | N32: 15 | O32: 15
A33: 14239690E | B33: =VLOOKUP(Table_T3[[#This Row],[Matricule]],Table_Elève[[Matricule]:[Classe]],6,0) -> 6ème3 | C33: =IF(COUNT(Table_T3[[#This Row],[CF]:[ANG]])=0,"",ROUND(SUM(Table_T3[[#This Row],[CF]:[ANG]]),2)) -> 125 | D33: =IF(Table_T3[Total]="","",ROUND(AVERAGE(Table_T3[[#This Row],[CF]:[ANG]]),2)) -> 11.36 | E33: 9 | F33: 17 | G33: 8 | H33: 11 | I33: 1 | J33: 16 | K33: 12 | L33: 3 | M33: 16 | N33: 17 | O33: 15
A34: 14239830P | B34: =VLOOKUP(Table_T3[[#This Row],[Matricule]],Table_Elève[[Matricule]:[Classe]],6,0) -> 6ème3 | C34: =IF(COUNT(Table_T3[[#This Row],[CF]:[ANG]])=0,"",ROUND(SUM(Table_T3[[#This Row],[CF]:[ANG]]),2)) -> 123 | D34: =IF(Table_T3[Total]="","",ROUND(AVERAGE(Table_T3[[#This Row],[CF]:[ANG]]),2)) -> 11.18 | E34: 13 | F34: 17 | G34: 8 | H34: 5 | I34: 1 | J34: 16 | K34: 12 | L34: 3 | M34: 16 | N34: 17 | O34: 15
A35: 14239831N | B35: =VLOOKUP(Table_T3[[#This Row],[Matricule]],Table_Elève[[Matricule]:[Classe]],6,0) -> 6ème3 | C35: =IF(COUNT(Table_T3[[#This Row],[CF]:[ANG]])=0,"",ROUND(SUM(Table_T3[[#This Row],[CF]:[ANG]]),2)) -> 122 | D35: =IF(Table_T3[Total]="","",ROUND(AVERAGE(Table_T3[[#This Row],[CF]:[ANG]]),2)) -> 11.09 | E35: 19 | F35: 15 | G35: 6 | H35: 7 | I35: 3 | J35: 16 | K35: 10 | L35: 1 | M35: 14 | N35: 14 | O35: 17
A36: 201121T | B36: =VLOOKUP(Table_T3[[#This Row],[Matricule]],Table_Elève[[Matricule]:[Classe]],6,0) -> 6ème3 | C36: =IF(COUNT(Table_T3[[#This Row],[CF]:[ANG]])=0,"",ROUND(SUM(Table_T3[[#This Row],[CF]:[ANG]]),2)) -> 175 | D36: =IF(Table_T3[Total]="","",ROUND(AVERAGE(Table_T3[[#This Row],[CF]:[ANG]]),2)) -> 13.46 | E36: 11 | F36: 13 | G36: 15 | H36: 18 | I36: 19 | J36: 5 | K36: 18 | L36: 10 | M36: 10 | N36: 11 | P36: 11 | Q36: 17 | R36: 17
A37: 22020201J | B37: =VLOOKUP(Table_T3[[#This Row],[Matricule]],Table_Elève[[Matricule]:[Classe]],6,0) -> 6ème3 | C37: =IF(COUNT(Table_T3[[#This Row],[CF]:[ANG]])=0,"",ROUND(SUM(Table_T3[[#This Row],[CF]:[ANG]]),2)) ->  | D37: =IF(Table_T3[Total]="","",ROUND(AVERAGE(Table_T3[[#This Row],[CF]:[ANG]]),2)) -> 

Sheet BDS1 (hidden)
A1: Matricule | B1: Classe | C1: Total | D1: Moy | E1: ANG | F1: COND | G1: EPS | H1: FR | I1: CMC | J1: MATH | K1: PHIL | L1: EC | M1: MATH FIN | N1: EOE | O1: EG | P1: DROIT | Q1: INFO
A2: 23525452M | B2: =VLOOKUP(Table_S1[[#This Row],[Matricule]],Table_Elève[[Matricule]:[Classe]],6,0) -> TleG1A | C2: =IF(COUNT(Table_S1[[#This Row],[ANG]:[INFO]])=0,"",ROUND(SUM(Table_S1[[#This Row],[ANG]:[INFO]]),2)) -> 168 | D2: =IF(Table_S1[Total]="","",ROUND(AVERAGE(Table_S1[[#This Row],[ANG]:[INFO]]),2)) -> 12.92 | E2: 10 | F2: 12 | G2: 14 | H2: 15 | I2: 10 | J2: 15 | K2: 11 | L2: 16 | M2: 11 | N2: 15 | O2: 10 | P2: 12 | Q2: 17

Sheet BDS2 (hidden)
A1: Matricule | B1: Classe | C1: Total | D1: Moy | E1: ANG | F1: COND | G1: EPS | H1: FR | I1: CMC | J1: MATH | K1: PHIL | L1: EC | M1: MATH FIN | N1: EOE | O1: EG | P1: DROIT | Q1: INFO
A2: 23525452M | B2: =VLOOKUP(Table_S2[[#This Row],[Matricule]],Table_Elève[[Matricule]:[Classe]],6,0) -> TleG1A | C2: =IF(COUNT(Table_S2[[#This Row],[ANG]:[INFO]])=0,"",ROUND(SUM(Table_S2[[#This Row],[ANG]:[INFO]]),2)) -> 148 | D2: =IF(Table_S2[Total]="","",ROUND(AVERAGE(Table_S2[[#This Row],[ANG]:[INFO]]),2)) -> 12.33 | E2: 11 | F2: 10 | G2: 14 | H2: 10 | I2: 11 | J2: 14 | K2: 15 | L2: 13 | M2: 13 | O2: 10 | P2: 11 | Q2: 16

Sheet BDCoefG (hidden)
A1: Classe | B1: ANG | C1: AP | D1: CF | E1: COND | F1: EDHC | G1: EPS | H1: EE | I1: FR | J1: HG | K1: LV2 | L1: MATH | M1: OG | N1: PHIL | O1: PC | P1: SVT
A2: 1èreA1A | B2: 2 | C2: 2 | D2: 2 | E2: 2 | F2: 2 | G2: 2 | H2: 2 | I2: 2 | J2: 2 | K2: 2 | L2: 2 | M2: 2 | N2: 2 | O2: 2 | P2: 2
A3: 2ndeC | B3: 2 | C3: 2 | D3: 2 | E3: 2 | F3: 2 | G3: 2 | H3: 2 | I3: 2 | J3: 2 | K3: 2 | L3: 2 | M3: 2 | N3: 2 | O3: 2 | P3: 2
A4: 3ème1 | B4: 2 | C4: 2 | D4: 2 | E4: 2 | F4: 2 | G4: 2 | H4: 2 | I4: 2 | J4: 2 | K4: 2 | L4: 2 | M4: 2 | N4: 2 | O4: 2 | P4: 2
A5: 3ème2 | B5: 2 | C5: 2 | D5: 2 | E5: 2 | F5: 2 | G5: 2 | H5: 2 | I5: 2 | J5: 2 | K5: 2 | L5: 2 | M5: 2 | N5: 2 | O5: 2 | P5: 2
A6: 3ème3 | B6: 2 | C6: 2 | D6: 2 | E6: 2 | F6: 2 | G6: 2 | H6: 2 | I6: 2 | J6: 2 | K6: 2 | L6: 2 | M6: 2 | N6: 2 | O6: 2 | P6: 2
A7: 4ème1 | B7: 2 | C7: 2 | D7: 2 | E7: 2 | F7: 2 | G7: 2 | H7: 2 | I7: 2 | J7: 2 | K7: 2 | L7: 2 | M7: 2 | N7: 2 | O7: 2 | P7: 2
A8: 4ème2 | B8: 2 | C8: 2 | D8: 2 | E8: 2 | F8: 2 | G8: 2 | H8: 2 | I8: 2 | J8: 2 | K8: 2 | L8: 2 | M8: 2 | N8: 2 | O8: 2 | P8: 2
A9: 4ème3 | B9: 2 | C9: 2 | D9: 2 | E9: 2 | F9: 2 | G9: 2 | H9: 2 | I9: 2 | J9: 2 | K9: 2 | L9: 2 | M9: 2 | N9: 2 | O9: 2 | P9: 2
A10: 5ème1 | B10: 2 | C10: 2 | D10: 2 | E10: 2 | F10: 2 | G10: 2 | H10: 2 | I10: 2 | J10: 2 | K10: 2 | L10: 2 | M10: 2 | N10: 2 | O10: 2 | P10: 2
A11: 5ème3 | B11: 2 | C11: 2 | D11: 2 | E11: 2 | F11: 2 | G11: 2 | H11: 2 | I11: 2 | J11: 2 | K11: 2 | L11: 2 | M11: 2 | N11: 2 | O11: 2 | P11: 2
A12: 6ème1 | B12: 2 | C12: 2 | D12: 2 | E12: 2 | F12: 2 | G12: 2 | H12: 2 | I12: 2 | J12: 2 | K12: 2 | L12: 2 | M12: 2 | N12: 2 | O12: 2 | P12: 2
A13: 6ème2 | B13: 2 | C13: 2 | D13: 2 | E13: 2 | F13: 2 | G13: 2 | H13: 2 | I13: 2 | J13: 2 | K13: 2 | L13: 2 | M13: 2 | N13: 2 | O13: 2 | P13: 2
A14: 6ème4 | B14: 2 | C14: 2 | D14: 2 | E14: 2 | F14: 2 | G14: 2 | H14: 2 | I14: 2 | J14: 2 | K14: 2 | L14: 2 | M14: 2 | N14: 2 | O14: 2 | P14: 2

Sheet BDCoefT (hidden)
A1: Classe | B1: ANG | C1: COND | D1: EPS | E1: FR | F1: CMC | G1: MATH | H1: PHIL | I1: EC | J1: MATH FIN | K1: EOE | L1: EG | M1: DROIT | N1: INFO
A2: TleG1A | B2: 2 | C2: 2 | D2: 2 | E2: 2 | F2: 2 | G2: 2 | H2: 2 | I2: 2 | J2: 2 | K2: 2 | L2: 2 | M2: 2 | N2: 2
A3: 1èreT1 | B3: 2 | C3: 2 | D3: 2 | E3: 2 | F3: 2 | G3: 2 | H3: 2 | I3: 2 | J3: 2 | K3: 2 | L3: 2 | M3: 2 | N3: 2
A4: 1èreT2 | B4: 2 | C4: 2 | D4: 2 | E4: 2 | F4: 2 | G4: 2 | H4: 2 | I4: 2 | J4: 2 | K4: 2 | L4: 2 | M4: 2 | N4: 2
A5: TleAB | B5: 2 | C5: 2 | D5: 2 | E5: 2 | F5: 2 | G5: 2 | H5: 2 | I5: 2 | J5: 2 | K5: 2 | L5: 2 | M5: 2 | N5: 2
A6: TleT1 | B6: 2 | C6: 2 | D6: 2 | E6: 2 | F6: 2 | G6: 2 | H6: 2 | I6: 2 | J6: 2 | K6: 2 | L6: 2 | M6: 2 | N6: 2
A7: TleG2 | B7: 2 | C7: 2 | D7: 2 | E7: 2 | F7: 2 | G7: 2 | H7: 2 | I7: 2 | J7: 2 | K7: 2 | L7: 2 | M7: 2 | N7: 2
A8: TleB1 | B8: 2 | C8: 2 | D8: 2 | E8: 2 | F8: 2 | G8: 2 | H8: 2 | I8: 2 | J8: 2 | K8: 2 | L8: 2 | M8: 2 | N8: 2

Sheet BDMatieres (hidden)
A1: Contenu Enseignement Bulletin Général | F1: Contenu Enseignement Bulletin Technique
A3: Liste des matières | B3: Abrev | C3: Groupe | F3: Liste des matières | G3: Abrev | H3: Groupe
A4: Anglais | B4: ANG | C4: Lettres | F4: Anglais | G4: ANG | H4: General
A5: Arts Plastiques | B5: AP | C5: Autres | F5: CMC | G5: CMC | H5: General
A6: Composition Française | B6: CF | C6: Français | F6: Conduite | G6: COND | H6: General
A7: Conduite | B7: COND | C7: Autres | F7: DROIT | G7: DROIT | H7: Technique
A8: EDHC | B8: EDHC | C8: Autres | F8: ECONOMIE D'ENTREPRISE | G8: EOE | H8: Technique
A9: EPS | B9: EPS | C9: Autres | F9: ECONOMIE GENERALE | G9: EG | H9: Technique
A10: Expression Ecrite | B10: EE | C10: Français | F10: EPS | G10: EPS | H10: General
A11: Français | B11: FR | C11: Français | F11: Etude de Cas | G11: EC | H11: Technique
A12: Histoire Géographie | B12: HG | C12: Lettres | F12: Français | G12: FR | H12: General
A13: LV2 | B13: LV2 | C13: Lettres | F13: INFORMATIQUE | G13: INFO | H13: Technique
A14: Mathématique | B14: MATH | C14: Sciences | F14: Mathématique | G14: MATH | H14: General
A15: Orthographe Grammaire | B15: OG | C15: Français | F15: MATHEMATIQUE FINANCIERE | G15: MATH FIN | H15: Technique
A16: Philosophie | B16: PHIL | C16: Lettres | F16: Philosophie | G16: PHIL | H16: General
A17: Physique Chimie | B17: PC | C17: Sciences
A18: SVT | B18: SVT | C18: Sciences

Sheet BDClasse (hidden)
A1: Classe | C1: 1èreA1A | E1: 1èreC | G1: 2ndeC | I1: 3ème1 | K1: 3ème2 | M1: 3ème3 | O1: 4ème1 | Q1: 4ème2 | S1: 4ème3 | U1: 5ème1 | W1: 5ème3 | Y1: 6ème1 | AA1: 6ème2 | AC1: 6ème4 | AE1: TleG1A | AG1: 1èreT1 | AI1: 1èreT2 | AK1: TleAB | AM1: TleT1 | AO1: TleG2 | AQ1: TleB1
A2: 1èreA1A | C2: Anglais | E2: Anglais | G2: Anglais | I2: Anglais | K2: Anglais | M2: Anglais | O2: Anglais | Q2: Anglais | S2: Anglais | U2: Anglais | W2: Anglais | Y2: Anglais | AA2: Anglais | AC2: Anglais | AE2: Anglais | AG2: Anglais | AI2: Anglais | AK2: Anglais | AM2: Anglais | AO2: Anglais | AQ2: Anglais
A3: 1èreC | C3: Composition Française | E3: Conduite | G3: Conduite | I3: Composition Française | K3: Composition Française | M3: Composition Française | O3: Composition Française | Q3: Composition Française | S3: Composition Française | U3: Composition Française | W3: Composition Française | Y3: Composition Française | AA3: Composition Française | AC3: Composition Française | AE3: Conduite | AG3: CMC | AI3: CMC | AK3: CMC | AM3: CMC | AO3: CMC | AQ3: CMC
A4: 1èreT1 | C4: Conduite | E4: EDHC | G4: EPS | I4: Conduite | K4: Conduite | M4: Conduite | O4: Conduite | Q4: Conduite | S4: Conduite | U4: Conduite | W4: Conduite | Y4: Conduite | AA4: Conduite | AC4: Conduite | AE4: EPS | AG4: Conduite | AI4: Conduite | AK4: Conduite | AM4: Conduite | AO4: Conduite | AQ4: Conduite
A5: 1èreT2 | C5: EDHC | E5: EPS | G5: Français | I5: EDHC | K5: EDHC | M5: EDHC | O5: EDHC | Q5: EDHC | S5: EDHC | U5: EDHC | W5: EDHC | Y5: EDHC | AA5: EDHC | AC5: EDHC | AE5: Français | AG5: DROIT | AI5: DROIT | AK5: DROIT | AM5: DROIT | AO5: DROIT | AQ5: DROIT
A6: 2ndeC | C6: EPS | E6: Français | G6: Histoire Géographie | I6: EPS | K6: EPS | M6: EPS | O6: EPS | Q6: EPS | S6: EPS | U6: EPS | W6: EPS | Y6: EPS | AA6: EPS | AC6: EPS | AE6: CMC | AG6: ECONOMIE D'ENTREPRISE | AI6: ECONOMIE D'ENTREPRISE | AK6: ECONOMIE D'ENTREPRISE | AM6: ECONOMIE D'ENTREPRISE | AO6: ECONOMIE D'ENTREPRISE | AQ6: ECONOMIE D'ENTREPRISE
A7: 3ème1 | C7: Expression Ecrite | E7: Histoire Géographie | G7: LV2 | I7: Expression Ecrite | K7: Expression Ecrite | M7: Expression Ecrite | O7: Expression Ecrite | Q7: Expression Ecrite | S7: Expression Ecrite | U7: Expression Ecrite | W7: Expression Ecrite | Y7: Expression Ecrite | AA7: Expression Ecrite | AC7: Expression Ecrite | AE7: Mathématique | AG7: ECONOMIE GENERALE | AI7: ECONOMIE GENERALE | AK7: ECONOMIE GENERALE | AM7: ECONOMIE GENERALE | AO7: ECONOMIE GENERALE | AQ7: ECONOMIE GENERALE
A8: 3ème2 | C8: Histoire Géographie | E8: Mathématique | G8: Mathématique | I8: Histoire Géographie | K8: Histoire Géographie | M8: Histoire Géographie | O8: Histoire Géographie | Q8: Histoire Géographie | S8: Histoire Géographie | U8: Histoire Géographie | W8: Histoire Géographie | Y8: Histoire Géographie | AA8: Histoire Géographie | AC8: Histoire Géographie | AE8: Philosophie | AG8: EPS | AI8: EPS | AK8: EPS | AM8: EPS | AO8: EPS | AQ8: EPS
A9: 3ème3 | C9: LV2 | E9: Physique Chimie | G9: Physique Chimie | I9: LV2 | K9: LV2 | M9: LV2 | O9: LV2 | Q9: LV2 | S9: LV2 | U9: Mathématique | W9: Mathématique | Y9: Mathématique | AA9: Mathématique | AC9: Mathématique | AE9: Etude de Cas | AG9: Etude de Cas | AI9: Etude de Cas | AK9: Etude de Cas | AM9: Etude de Cas | AO9: Etude de Cas | AQ9: Etude de Cas
A10: 4ème1 | C10: Mathématique | E10: SVT | G10: SVT | I10: Mathématique | K10: Mathématique | M10: Mathématique | O10: Mathématique | Q10: Mathématique | S10: Mathématique | U10: Orthographe Grammaire | W10: Orthographe Grammaire | Y10: Orthographe Grammaire | AA10: Orthographe Grammaire | AC10: Orthographe Grammaire | AE10: MATHEMATIQUE FINANCIERE | AG10: Français | AI10: Français | AK10: Français | AM10: Français | AO10: Français | AQ10: Français
A11: 4ème2 | C11: Orthographe Grammaire | I11: Orthographe Grammaire | K11: Orthographe Grammaire | M11: Orthographe Grammaire | O11: Orthographe Grammaire | Q11: Orthographe Grammaire | S11: Orthographe Grammaire | U11: Physique Chimie | W11: Physique Chimie | Y11: Physique Chimie | AA11: Physique Chimie | AC11: Physique Chimie | AE11: ECONOMIE D'ENTREPRISE | AG11: INFORMATIQUE | AI11: INFORMATIQUE | AK11: INFORMATIQUE | AM11: INFORMATIQUE | AO11: INFORMATIQUE | AQ11: INFORMATIQUE
A12: 4ème3 | C12: Physique Chimie | I12: Physique Chimie | K12: Physique Chimie | M12: Physique Chimie | O12: Physique Chimie | Q12: Physique Chimie | S12: Physique Chimie | U12: SVT | W12: SVT | Y12: SVT | AA12: SVT | AC12: SVT | AE12: ECONOMIE GENERALE | AG12: Mathématique | AI12: Mathématique | AK12: Mathématique | AM12: Mathématique | AO12: Mathématique | AQ12: Mathématique
A13: 5ème1 | C13: SVT | I13: SVT | K13: SVT | M13: SVT | O13: SVT | Q13: SVT | S13: SVT | U13: Arts Plastiques | W13: Arts Plastiques | Y13: Arts Plastiques | AA13: Arts Plastiques | AC13: Arts Plastiques | AE13: DROIT | AG13: MATHEMATIQUE FINANCIERE | AI13: MATHEMATIQUE FINANCIERE | AK13: MATHEMATIQUE FINANCIERE | AM13: MATHEMATIQUE FINANCIERE | AO13: MATHEMATIQUE FINANCIERE | AQ13: MATHEMATIQUE FINANCIERE
A14: 5ème3 | C14: Arts Plastiques | I14: Arts Plastiques | K14: Arts Plastiques | M14: Arts Plastiques | O14: Arts Plastiques | Q14: Arts Plastiques | S14: Arts Plastiques | AE14: INFORMATIQUE | AG14: Philosophie | AI14: Philosophie | AK14: Philosophie | AM14: Philosophie | AO14: Philosophie | AQ14: Philosophie
A15: 6ème1
A16: 6ème2
A17: 6ème4
A18: TleAB
A19: TleB1
A20: TleG1A
A21: TleG2
A22: TleT1

Sheet ParaMDP (hidden)
A1: Ligne | B1: ADMIN | C1: 315859W | D1: 123456Y | E1: 293471R | F1: 454545T | G1: 4544F
A2: Mot de passe | B2: MDP | C2: 315859W | D2: 123456Y | E2: 293471R | F2: 454545T | G2: 4544F
A3: Ouverture | B3: X | C3: X | D3: X | E3: X | F3: X | G3: X
A4: Scolarité | B4: X
A5: Liste | B5: X | C5: X | D5: X | E5: X | F5: X | G5: X
A6: Saisie_Note | B6: X | C6: X | D6: X | E6: X | F6: X | G6: X
A7: Recueil | B7: X | C7: X | D7: X | E7: X | F7: X | G7: X
A8: Bulletin | B8: X | C8: X | D8: X | E8: X | F8: X | G8: X
A9: Merite | B9: X
A10: RESULTAT | B10: X
A11: Livret | B11: X
A12: Matières | B12: X | C12: X | D12: X | E12: X | F12: X | G12: X
A13: liste_inscrits | B13: X
A14: liste_examen | B14: X
A15: pv_trimestre | B15: X
A16: pv_annuel | B16: X
A17: reçu | B17: X
A18: Inscription | B18: X
A19: Bilan | B19: X
A20: BDProfesseurs | B20: X
A21: BDEducateurs | B21: X
A22: BDEconomat | B22: X
A23: BDElèves | B23: X
A24: BDT1 | B24: X
A25: BDT2 | B25: X
A26: BDT3 | B26: X
A27: BDS1 | B27: X
A28: BDS2 | B28: X
A29: BDCoefG | B29: X
A30: BDCoefT | B30: X
A31: BDMatieres | B31: X
A32: BDClasse | B32: X
A33: ParaVar | B33: X
A34: ParaMDP | B34: X
A35: ParaImpression | B35: X
A36: ParaEcole | B36: X
A37: TCD | B37: X
A38: BDClasse | B38: X
A39: ParaVar | B39: X
A40: Liste_Matières | B40: X
A41: Liste_Note | B41: X

Sheet ParaEcole (hidden)
A1: Intitulés | B1: Affectation | D1: Sexe | F1: Nationalité | H1: Année Scolaire | J1: Trimestre | L1: Type | N1: Lettre | P1: Chiffre | R1: Diplome
A2: pays | B2: République de cote d'Ivoire | D2: Féminin | F2: Algérienne | H2: 2022-2023 | J2: 1er Trimestre | L2: 1ère | N2: A | P2: 1 | R2: Classe
A3: Ministère | B3: Ministre de l'éducation nationale | D3: Masculin | F3: Française | J3: 2ème Trimestre | L3: 2nde | N3: AB | P3: 2 | R3: OR
A4: Direction régionale | B4: Direction régionale d'Abidjan sud | F4: Gabonnaise | J4: 3ème Trimestre | L4: 3ème | N4: B | P4: 3 | R4: BEPC
A5: Etablissement | B5: Institut d'enseignement général et technique la Grace Abidjan (IEGTA) | F5: Ivoirienne | L5: 4ème | N5: C | P5: 4 | R5: BACA
A6: Adresse | B6: BP V102 Abidjan | J6: Semestre | L6: 5ème | N6: D | P6: 5 | R6: BACB
A7: Localité | B7: Abidjan | J7: 1er Semestre | L7: 6ème | N7: E | P7: 6 | R7: BACC
A8: Téléphone | J8: 2ème Semestre | L8: Tle | N8: F | P8: 7 | R8: BACD
A9: Email | B9: iegta-grace23@men.edu.ci | N9: G | P9: 8 | R9: BACG1
A10: Devise | B10: Union-Discipline-Travail | J10: TriSem | N10: T | P10: 9 | R10: BACG2
A11: Titre du CE | B11: Directeur | J11: FALSE | P11: 10
A12: Nom du CE | B12: Serge Kacou | P12: 11
A13: Logo_Pays | B13: \Images\Logo_Lycee.jpg | P13: 12
A14: Logo_Ets | B14: \Images\Logo.jpg
A15: Compte Email
A16: Mdp Email
A17: Port Email

Sheet ParaVar (hidden)
A1: Utilisateur | B1: TriSem | C1: Matricule | D1: Lg | E1: Col | F1: Page | G1: PasseValeur | H1: ChkEns | I1: AffMasq | J1: T1 | K1: T2 | L1: T3 | M1: T4 | N1: T5 | O1: T6 | P1: S1 | Q1: S2 | R1: S3 | S1: S4
B2: Semestre

Sheet TCD (hidden)
A1: Matricule | B1: Classe | C1: Total | D1: Moy | E1: ANG | F1: COND | G1: EPS | H1: FR | I1: CMC | J1: MATH | K1: PHIL | L1: EC | M1: MATH FIN | N1: EOE | O1: EG | P1: DROIT | Q1: INFO
A2: 23525452M | B2: TleG1A | C2: =IF(COUNT(Table_TCD[[#This Row],[ANG]:[INFO]])=0,"",SUM(Table_TCD[[#This Row],[ANG]:[INFO]])) -> 316 | D2: =IF(Table_TCD[[#This Row],[Total]]="","",ROUND(AVERAGE(Table_TCD[[#This Row],[ANG]:[INFO]])/3,2)) -> 8.1 | E2: 21 | F2: 22 | G2: 28 | H2: 25 | I2: 21 | J2: 29 | K2: 26 | L2: 29 | M2: 24 | N2: 15 | O2: 20 | P2: 23 | Q2: 33
